Cogmind - Beta 16 @@@ ROGUE MODE // 2025.12.06 @ 23:43:49 Player: H3-MLN Result: Destroyed by G-73 Enforcer with Heavy Laser Performance ------------- Evolutions (9) 4500 Regions Visited (36) 7200 Robots Destroyed (502) 2510 Value Destroyed (22249) 22249 Prototype IDs (117) 2340 Alien Tech Used (2) 400 Bonus (48974) 48974 TOTAL SCORE: 88173 Bonus ------- Triggered High Security 3000 High Alert Combat Kills 12326 Follower Combat Kills 25527 Destroyed Unchained 4000 Entered Garrisons 400 Used RIF Installer 500 Network Hubs Disabled 400 Aligned with FarCom 300 Found Hidden Lab 3000 Scanned by Researcher 500 Pursued by Intercept 500 Destroyed MAIN.C Guards 500 Friendly Fire -1979 Cogmind --------- Core Integrity 0/1600 Matter 293/300 Energy 100/100 System Corruption 47% Temperature Cool (9) Movement Core (50) Location -1/Command Parts ------- > --- POWER (2) -------- (None) > --- PROPULSION (8) --- (None) > --- UTILITY (13) ----- Spectral Analyzer Graphene Brace > --- WEAPON (2) ------- (None) > --- INVENTORY (5) ---- Transdimensional Reconstructor Enhanced Hardcell Cannon Enhanced Gamma Bomb Array IN-MT5's Pitchfork "Insurrection" (11) Peak State ------------ > --- POWER ------------ Quantum Reactor Light Quantum Reactor > --- PROPULSION ------- Improved Thunder Leg Centrium Leg Centrium Leg Centrium Leg Centrium Leg Centrium Leg Heavy Shield Leg > --- UTILITY ---------- Experimental Cryofiber Web Advanced Heat Sink Huge Storage Unit Spectral Analyzer Experimental Core Analyzer Experimental Reaction Control System Advanced Phase Shifter Medium Regenerative Plating Graphene Brace QV-33N's Launch Deck > --- WEAPON ----------- Multinova Projection Cannon > --- INVENTORY -------- Backup Power VII Light Quantum Reactor Myomer Leg Biometal Leg Enhanced Biometal Leg Advanced Heat Sink Experimental Energy Well Advanced Matter Compressor Advanced Transmission Jammer Advanced Phase Shifter Superdense Plating Medium Regenerative Plating Long-range Tractor Beam Field Recycling Unit Transdimensional Reconstructor Nova Cannon Helical Railgun Helical Railgun Enhanced Gamma Bomb Array Micro-nuke Launcher Hellfire Missile Launcher IN-MT5's Pitchfork "Insurrection" [Rating: 238] Favorites ----------- Power Quantum Reactor Engine Light Deuterium Engine Power Core Micro Fission Core Reactor Quantum Reactor Propulsion Cooled VTOL Module Treads Centrium Heavy Treads Leg Centrium Leg Hover Unit Antigrav System Flight Unit Cooled VTOL Module Utility Improved Hacking Suite Device Graphene Brace Storage Huge Storage Unit Processor Spectral Analyzer Hackware Improved Hacking Suite Protection Medium Regenerative Plating Weapon Kinetic Spear Energy Gun EM Pulse Gun Energy Cannon Multinova Projection Cannon Ballistic Gun Light Assault Rifle Ballistic Cannon Enhanced Hardcell Cannon Launcher Enhanced Gamma Bomb Array Special Weapon Molecular Deconstructor Impact Weapon Shock Maul Slashing Weapon Ionic Axe Piercing Weapon Kinetic Spear Special Melee Weapon Advanced Datajack Build | -11 -10 -10 -9 -9 -9 -8 -8 -8 -8 -8 -8 -6 -6 -6 -6 -6 -6 -6 -6 -5 -5 -5 -5 -5 -5 -5 -5 -4 -4 -4 -3 -3 -3 -2 -1 -1 ------- Run | Yrd Mat Min Mat Min Exi Min Mat Gar Sto Rec Scr Fac Was Fac Gar Fac Low Low Zio Pro Fac Was Fac Ext Cet Arc Hub Fac Was Fac Res Arm Lab Res Acc Com Slots Evolved 18 | . . . 2 . . . 2 . . . . 4 . . . . . . . . 2 . . . . . . 2 . . 2 . . 2 2 . Power 1 | . . . . . . . . . . . . . . . . . . . . . . . . . . . . 1 . . . . . . . . Propulsion 6 | . . . . . . . 2 . . . . . . . . . . . . . 1 . . . . . . . . . 1 . . 2 . . Utility 11 | . . . 2 . . . . . . . . 4 . . . . . . . . 1 . . . . . . 1 . . 1 . . . 2 . Weapon . | . . . . . . . . . . . . . . . . . . . . . . . . . . . . . . . . . . . . . Parts Attached 398 | 4 11 2 15 5 1 1 28 . 2 . 4 21 2 14 8 8 1 . 1 3 6 3 28 8 5 3 4 30 5 29 31 36 10 20 39 10 Power 36 | 2 4 . 2 2 . . 3 . . . 1 1 . . . 1 . . . . 1 . 2 1 1 . . . . 3 4 2 . . 5 1 Engine 15 | 2 3 . 2 2 . . 1 . . . 1 1 . . . 1 . . . . . . 1 . . . . . . 1 . . . . . . Core 6 | . 1 . . . . . 2 . . . . . . . . . . . . . 1 . . . . . . . . 2 . . . . . . Reactor 15 | . . . . . . . . . . . . . . . . . . . . . . . 1 1 1 . . . . . 4 2 . . 5 1 Propulsion 106 | . 3 . 7 1 . . 9 . . . . 3 . . 5 5 . . . . . . 7 1 2 . . 9 . 12 9 12 1 7 9 4 Treads 1 | . . . . . . . . . . . . . . . . . . . . . . . . . . . . . . . 1 . . . . . Leg 31 | . . . . . . . . . . . . . . . . . . . . . . . . . . . . . . . . 10 1 7 9 4 Wheel . | . . . . . . . . . . . . . . . . . . . . . . . . . . . . . . . . . . . . . Hover 8 | . . . . . . . . . . . . . . . . . . . . . . . . . . . . . . 6 . 2 . . . . Flight 66 | . 3 . 7 1 . . 9 . . . . 3 . . 5 5 . . . . . . 7 1 2 . . 9 . 6 8 . . . . . Utility 178 | . 2 2 4 2 1 . 7 . . . 2 15 1 5 2 2 1 . . 3 5 3 12 5 2 3 3 17 5 9 13 14 5 10 20 3 Device 82 | . 2 1 2 1 1 . 3 . . . 1 4 1 . 1 . . . . 3 4 2 6 2 . 1 . 5 1 5 7 7 3 6 12 1 Storage 12 | . . . . . . . . . . . . . . . . . . . . . . . 1 . 1 . . 1 . 1 3 1 . 2 1 1 Processor 23 | . . 1 1 . . . . . . . . 3 . 2 . . . . . . 1 . . 1 . . . 5 . 1 2 3 . 1 2 . Hackware 49 | . . . 1 1 . . 4 . . . . 8 . 2 1 2 1 . . . . . 5 2 . 2 3 6 4 1 1 . . 1 4 . Protection 12 | . . . . . . . . . . . 1 . . 1 . . . . . . . 1 . . 1 . . . . 1 . 3 2 . 1 1 Artifact . | . . . . . . . . . . . . . . . . . . . . . . . . . . . . . . . . . . . . . Weapon 78 | 2 2 . 2 . . 1 9 . 2 . 1 2 1 9 1 . . . 1 . . . 7 1 . . 1 4 . 5 5 8 4 3 5 2 Energy Gun 6 | 1 1 . . . . . . . . . . . . 2 . . . . . . . . . . . . . . . . . 1 1 . . . Energy Cannon 10 | . . . . . . . . . . . . . . 1 . . . . . . . . . . . . . 1 . . 1 2 2 . 3 . Ballistic Gun 9 | 1 1 . . . . . 1 . . . . . . 1 . . . . . . . . 1 1 . . . 1 . . . 1 . . 1 . Ballistic Cannon 3 | . . . . . . . . . . . . . . . . . . . . . . . . . . . . . . . . 1 . . . 2 Launcher 16 | . . . 1 . . . 1 . 2 . . . 1 1 . . . . . . . . 1 . . . . 1 . 2 1 1 . 3 1 . Special Weapon 9 | . . . . . . . 1 . . . 1 . . . 1 . . . 1 . . . 1 . . . . . . 2 . 1 1 . . . Impact Weapon 8 | . . . 1 . . 1 3 . . . . 1 . 1 . . . . . . . . 1 . . . . . . . . . . . . . Slashing Weapon 9 | . . . . . . . 2 . . . . . . 3 . . . . . . . . 1 . . . . . . 1 2 . . . . . Piercing Weapon 3 | . . . . . . . 1 . . . . . . . . . . . . . . . 1 . . . . . . . . 1 . . . . Special Melee Weapon 5 | . . . . . . . . . . . . 1 . . . . . . . . . . 1 . . . 1 1 . . 1 . . . . . Unidentified Prototypes 61 | . . 1 . . . . . . 1 . . 2 . 7 . 1 . . 1 . . 1 11 . . . . 1 . 1 4 13 4 5 8 . Corrupted Parts 6 | . . . . . . . . . . . . . . . . . . . . . . . . . . . . . . . . . 1 1 1 3 System Corruption 38 | . . . . . . . . . . . . . . . . . . . . . . . . . . . . . . . . . 2 10 5 21 Parts Lost 110 | . 5 1 11 . . . 8 . . . . . . . . 1 . . . 1 . . 5 4 . . 1 25 . 8 2 1 . 1 6 30 Power 11 | . 2 . 2 . . . . . . . . . . . . 1 . . . . . . 1 1 . . . 2 . . . . . . . 2 Propulsion 47 | . 1 . 6 . . . 3 . . . . . . . . . . . . . . . 3 1 . . 1 13 . 3 2 . . 1 2 11 Utility 40 | . . 1 2 . . . 2 . . . . . . . . . . . . 1 . . 1 2 . . . 9 . 4 . 1 . . 4 13 Weapon 12 | . 2 . 1 . . . 3 . . . . . . . . . . . . . . . . . . . . 1 . 1 . . . . . 4 Highest Loss Streak 20 | . 2 1 5 . . . 6 . . . . . . . . 1 . . . 1 . . 1 3 . . 1 5 . 6 1 1 . 1 3 20 To Critical Strikes . | . . . . . . . . . . . . . . . . . . . . . . . . . . . . . . . . . . . . . Average Backups 9 | . 2 4 4 4 3 2 1 2 2 2 4 4 5 4 5 4 4 4 4 4 4 4 9 13 10 12 13 13 5 5 6 19 19 20 17 11 Power . | . . . . . . . . . . . . . . . . . . . . . . . . . 1 1 1 1 . . . 1 . . . . Propulsion 1 | . . 1 1 . . . . 1 1 . . . . . . . . . . . . . 1 2 1 1 1 . . . . 3 2 1 1 . Utility 3 | . 1 3 2 2 1 1 . 1 1 1 2 1 . . 1 . . . . . . . 3 5 5 5 7 7 2 1 1 7 8 10 6 3 Weapon 3 | . . . . . 1 1 . . . . 1 1 4 3 2 3 2 3 3 3 3 3 2 2 2 3 2 3 3 3 3 6 6 4 7 5 Tool/Special . | . . . . . . . . . . . . . . . . . . . . . . . . . . . . . . . . . . . . . Unused Backups 67 | . . . . 1 1 . . . . . 1 3 . 5 1 2 . . . . . . 5 2 . . . 3 1 3 8 7 4 5 11 4 Power 15 | . . . . 1 . . . . . . . 1 . . . . . . . . . . . 1 . . . 1 . . . 4 1 . 6 . Propulsion 13 | . . . . . 1 . . . . . . . . 2 . . . . . . . . 1 . . . . . . 1 5 1 1 . 1 . Utility 28 | . . . . . . . . . . . . 2 . 3 1 . . . . . . . 4 1 . . . 2 1 2 2 . 1 5 3 1 Weapon 10 | . . . . . . . . . . . 1 . . . . 2 . . . . . . . . . . . . . . 1 2 1 . 1 2 Tool/Special 1 | . . . . . . . . . . . . . . . . . . . . . . . . . . . . . . . . . . . . 1 Average Slot Usage (%) 86 | . 72 92 73 56 88 88 79 90 95 90 90 94 99 99 100 99 100 100 100 99 93 92 94 92 88 93 99 82 55 82 90 79 68 63 89 61 Engine 3 | . 11 14 6 4 11 11 4 9 9 9 8 6 6 6 6 5 6 6 6 6 5 5 1 . . . . 3 . . . . . . . . Reactor 3 | . . . . . . . . . . . . . . . . . . . . . . . 3 4 5 5 5 5 . . 6 9 9 4 6 4 Leg 6 | . . . . . . . . . . . . . . . . . . . . . . . . . . . . . . . . 21 19 21 29 19 Flight 17 | . 15 28 19 15 22 22 24 36 36 36 36 25 26 26 26 26 26 26 26 26 22 23 24 23 27 29 29 17 . 11 22 4 . . . . Device 19 | . 16 14 11 1 17 22 16 9 9 9 15 12 16 19 20 23 26 26 26 25 28 27 17 17 21 22 10 11 8 22 16 22 22 17 27 15 Storage 2 | . . . . . . . . . . . . . . . . . . . . . . . 2 5 5 5 9 5 1 1 8 4 4 4 4 4 Processor 4 | . . 6 16 22 15 11 4 . . . . 6 6 6 3 . . . . . 4 5 2 . . . . 5 6 7 9 5 4 5 8 8 Hackware 14 | . . . 3 1 11 11 11 27 27 27 13 23 26 26 28 27 26 26 26 26 17 17 28 27 11 16 30 22 28 18 10 3 . . 1 . Protection 2 | . . . . . . . . . . . 6 6 3 . . . . . . . . . . . 3 5 . 1 . . 3 1 3 3 5 3 Energy Cannon 1 | . . . . . . . . . . . . . . . . . . . . . . . . . . . . . . . . 2 3 3 5 2 Impact Weapon 3 | . . . 9 11 11 11 8 9 9 9 9 6 6 6 6 6 6 6 6 6 5 5 5 4 1 . 1 . . . . . . . . . Slashing Weapon 1 | . . . . . . . . . . . . . . 1 6 6 6 6 6 6 5 5 1 . . . . . . . . 1 . . . . Piercing Weapon 1 | . . . . . . . 4 . . . . . . . . . . . . . . . 2 4 5 5 5 4 5 3 2 . . . . . Peak Build Rating 238 | 3 11 18 20 15 18 21 34 34 38 36 39 56 63 80 80 88 86 86 89 86 89 93 112 115 112 110 112 118 73 133 159 203 203 213 238 233 Average Rating 109 | 2 5 9 13 9 16 18 26 34 35 34 34 50 58 66 76 83 85 86 85 84 84 88 101 106 101 104 107 98 70 103 138 184 171 199 218 167 On Entrance 76 | . 3 9 11 8 15 18 21 34 34 36 34 35 56 60 79 73 86 86 86 86 81 87 93 104 104 103 105 103 56 71 117 154 203 197 171 224 Avg Prop Armor Cover (%) 3 | . . . . . . . . . . . . . . . . 11 2 2 2 2 2 1 2 1 17 18 19 . . 14 4 3 . 7 4 12 Naked Turns 18 | . . . . . . . 18 . . . . . . . . . . . . . . . . . . . . . . . . . . . . . Heaviest Build 262 | 9 10 8 9 6 6 9 12 10 11 11 19 16 14 15 15 16 14 14 14 14 22 29 49 49 57 47 45 56 3 35 67 234 254 244 251 262 Greatest Support 240 | 3 8 8 16 10 10 10 16 24 24 16 24 24 16 16 16 20 20 15 28 20 22 20 54 59 55 55 53 60 3 49 71 178 178 240 238 238 Greatest Overweight (x) 15 | 2 2 . 1 . . . 1 . . . 1 . . . . 4 . . . . 1 1 1 . 1 15 1 7 . 2 1 1 1 1 1 7 Average Overweight (x) . | 1 . . . . . . . . . . . . . . . . . . . . . . . . . 7 . . . . . . . . . . Largest Inventory Capacity 25 | 5 5 5 5 5 5 5 5 5 5 5 5 5 5 5 5 5 5 5 5 5 5 5 15 15 15 15 15 15 15 10 15 25 25 25 25 25 Average Capacity 12 | 5 5 5 5 5 5 5 5 5 5 5 5 5 5 5 5 5 5 5 5 5 5 5 10 15 15 15 15 15 7 6 10 22 25 25 25 16 Most Carried 25 | 1 5 5 5 5 5 5 5 5 5 5 5 5 5 5 5 5 5 5 5 5 5 5 15 15 15 15 15 15 13 10 15 25 25 25 25 25 Average Carried 11 | . 3 4 4 4 4 5 4 5 5 4 4 4 5 4 4 4 4 5 4 5 4 5 10 14 12 14 14 14 5 6 10 22 20 24 24 14 Final Capacity 25 | 5 5 5 5 5 5 5 5 5 5 5 5 5 5 5 5 5 5 5 5 5 5 5 15 15 15 15 15 15 5 5 15 25 25 25 25 5 Final Carried 25 | 1 4 5 4 5 5 5 5 5 5 5 5 5 5 5 5 5 5 5 5 5 5 5 15 13 13 15 15 14 5 5 15 25 25 25 25 4 Class Distribution -------------------- 23% | Hacker-Sprinter 20% | Scavenger-Mutant 18% | Mutant 18% | Hacker-Scout 4% | Hacker-Mutant 3% | Scavenger-Sprinter Dominant Class ---------------- Mutant | -10/Materials Scavenger-Mutant | -10/Mines Scout | -9/Materials Mutant | -9/Mines Mutant | -9/Exiles Mutant | -8/Mines Scavenger-Sprinter | -8/Materials Hacker-Sprinter | -8/Garrison Hacker-Sprinter | -8/Storage Hacker-Sprinter | -8/Recycling Scavenger-Mutant | -8/Scraptown Hacker-Sprinter | -6/Factory Hacker-Scout | -6/Waste Hacker-Scout | -6/Factory Hacker-Scout | -6/Garrison Hacker-Scout | -6/Factory Hacker-Sprinter | -6/Lower Caves Hacker-Sprinter | -6/Lower Caves Hacker-Sprinter | -6/Zion Hacker-Sprinter | -5/Proximity Caves Hacker-Scout | -5/Factory Hacker-Scout | -5/Waste Hacker-Sprinter | -5/Factory Hacker-Sprinter | -5/Extension Hacker-Sprinter | -5/Cetus Scavenger-Mutant | -5/Archives Scavenger-Sprinter | -5/Hub_04(d) Wizard-Scout | -4/Factory Hacker-Mutant | -4/Waste Hacker-Scout | -4/Factory Hacker-Sprinter | -3/Research Mutant | -3/Armory Mutant | -3/Lab Mutant | -2/Research Scavenger-Mutant | -1/Access Scavenger-Mutant | -1/Command Resources | -11 -10 -10 -9 -9 -9 -8 -8 -8 -8 -8 -8 -6 -6 -6 -6 -6 -6 -6 -6 -5 -5 -5 -5 -5 -5 -5 -5 -4 -4 -4 -3 -3 -3 -2 -1 -1 ----------- Run | Yrd Mat Min Mat Min Exi Min Mat Gar Sto Rec Scr Fac Was Fac Gar Fac Low Low Zio Pro Fac Was Fac Ext Cet Arc Hub Fac Was Fac Res Arm Lab Res Acc Com Matter Collected 35227 | 230 297 20 146 120 . 44 485 . 75 . 70 316 25 312 105 163 33 29 40 40 90 60 441 335 . 72 10 827 . 707 1035 4566 70 7425 12470 4569 Remotely 18914 | . . . . . . . . . . . . . . . . . . . . . . . . . . . . . . . . . . 3709 11378 3827 Salvage Created 27494 | 39 594 . 558 81 . 122 790 . 233 104 9 631 . 760 . 555 . . 151 112 266 70 1213 289 . 72 273 1061 . 932 1596 1576 70 6793 6203 2341 Parts 1109 | 5 45 . 29 15 . 3 56 . 3 . . 9 . 21 . 11 . . 6 4 2 2 24 26 . 8 15 40 . 36 68 105 9 295 205 67 Haulers Intercepted 47 | . 2 . 6 . . . 4 . 3 . . 2 . 4 . 3 . . . . 3 . 8 . . . . 4 . . 2 . . 4 2 . Recyclers Shooed 9 | . . . . . . . 2 . . . . . . . . . . . . . . . . . . . . 1 . 1 . . . 4 1 . Parts Field Recycled 11 | . . . . . . . . . . . . . . . . . . . . . . . . . . . . . . . . . . 11 . . Retrieved Matter 71 | . . . . . . . . . . . . . . . . . . . . . . . . . . . . . . . . . . 71 . . Parts Self-Destructed 30 | . . . . . . . . . . . . . . . . . 22 . . 8 . . . . . . . . . . . . . . . . Prevented 2 | . . . . . . . . . . . . . . . . . . 2 . . . . . . . . . . . . . . . . . . Parts Restored . | . . . . . . . . . . . . . . . . . . . . . . . . . . . . . . . . . . . . . Kills | -11 -10 -10 -9 -9 -9 -8 -8 -8 -8 -8 -8 -6 -6 -6 -6 -6 -6 -6 -6 -5 -5 -5 -5 -5 -5 -5 -5 -4 -4 -4 -3 -3 -3 -2 -1 -1 ------- Run | Yrd Mat Min Mat Min Exi Min Mat Gar Sto Rec Scr Fac Was Fac Gar Fac Low Low Zio Pro Fac Was Fac Ext Cet Arc Hub Fac Was Fac Res Arm Lab Res Acc Com Combat Hostiles Destroyed 271 | . 13 . 9 3 . . 12 . 1 . . 1 . . . 1 . . 2 2 . . 4 3 . . 5 20 . 16 4 19 1 57 62 36 Melee 39 | . . . 5 . . . 3 . 1 . . . . . . 1 . . 2 2 . . 4 3 . . . 7 . 2 4 4 . . 1 . Guns 16 | . 13 . . . . . . . . . . . . . . . . . . . . . . . . . . . . . . . . . . 3 Cannons 87 | . . . . . . . . . . . . . . . . . . . . . . . . . . . . . . . . 13 . 28 39 7 AOE 78 | . . . 3 3 . . 8 . . . . . . . . . . . . . . . . . . . 5 13 . 13 . . . 17 8 8 Classes Destroyed 30 | 1 5 . 1 . . 1 2 . . . 1 . . 1 . 1 . . 1 . . . 1 1 . . . 3 . . . 1 . 8 1 1 Worker 24 | . 4 . . 1 . 1 2 . . . . 2 . . . . . . . . . . . . . . 1 . . 2 . . . 8 3 . Builder 44 | . . . . . . . 8 . . 2 . 1 . 2 . 2 . . . . . . 1 1 . . . 1 . 1 4 . . 13 8 . Tunneler 10 | 3 . . . 3 . 1 1 . . . . 1 . . . 1 . . . . . . . . . . . . . . . . . . . . Hauler 47 | . 2 . 6 . . . 4 . 3 . . 2 . 4 . 3 . . . . 3 . 8 . . . . 4 . . 2 . . 4 2 . Recycler 34 | . . . . . . 1 4 . . 1 . 2 . 2 . 1 . . . . . . . . . . . . . 4 6 . . 7 6 . Carrier 1 | . . . . . . . . . . . . . . . . . . . . . . . . . . . . . . . . . . 1 . . Mechanic 7 | . . . . . . . . . . . . . . . . . . . . . . . . 2 . . . . . . . . . 1 3 1 Operator 10 | . 2 . . . . . . . 1 . . . . . . . . . . . 1 . 1 . . 2 . . . . 1 . . 2 . . Drone 15 | . . . . . . . . . . . . . . . . . . . . . . . . . . . . 1 . 7 . . . . 7 . Turret 2 | . . . . . . . . . . . . . . . . . . . . . . . . . . . . . . . . . . 2 . . Watcher 37 | . . . 1 . . . 3 . 1 . . 3 . . . 3 . . . . . . 2 . . . 3 4 . 1 4 1 . 5 4 2 Swarmer 44 | . 6 . 3 3 . . 4 . . . . . . . . . . . . . . . . . . . 5 10 . 5 . . . 5 1 2 Cutter 10 | . . . . . . . 8 . . . . . . . . . . . . . . . . . . . . 2 . . . . . . . . Saboteur 6 | . . . . . . . . . . . . . . . . . . . . . . . . . . . . . . . . . . 2 4 . Grunt 70 | . 7 . 6 . . . . . 1 . . 1 . . . . . . . 1 . . 2 3 . . . 3 . . 2 2 . 14 14 14 Brawler 11 | . . . . . . . . . . . . . . . . . . . . . . . . . . . . . . . . . . 3 7 1 Duelist 16 | . . . . . . . . . . . . . . . . 1 . . . 1 . . . . . . . 1 . . . . . . 6 7 Protector 4 | . . . . . . . . . . . . . . . . . . . . . . . . . . . . . . . . . . . 3 1 Sentry 16 | . . . . . . . . . . . . . . . . . . . . . . . 2 . . . . . . 1 1 2 . 5 5 . Demolisher 6 | . . . . . . . . . . . . . . . . . . . . . . . . . . . . . . . . . . 2 3 1 Specialist 2 | . . . . . . . . . . . . . . . . . . . . . . . . . . . . . . . . . . 1 1 . Hunter 18 | . . . . . . . . . . . . . . . . . . . . . . . . . . . . 2 . . 1 3 . 11 1 . Programmer 32 | . . . . . . . . . . . . . . . . . . . . . . . . . . . . 1 . 2 . 10 . 8 10 1 Heavy 2 | . . . . . . . . . . . . . . . . . . . . . . . . . . . . . . . . 1 . . . 1 Behemoth 3 | . . . . . . . . . . . . . . . . . . . . . . . . . . . . . . . . . . 1 1 1 Armor Guard 2 | . . . . . . . . . . . . . . . . . . . . . . . . . . . . . . . . 2 . . . . M Guard 2 | . . . . . . . . . . . . . . . . . . . . . . . . . . . . . . . . . . . . 2 Tracker 2 | . . . . . . . . . . . . . . . . . . . . . . . . . . . . . . . . . . 2 . . Combat Programmer 4 | . . . . . . . . . . . . . . . . . . . . . . . . . . . . . . . . . . 2 . 2 Investigator 1 | . . . . . . . . . . . . . . . . . . . . . . . . . . . . . . . . . . . . 1 Striker 8 | . . . . . . . . . . . . . . . . . . . . . . . . . . . . . . . . . . 2 4 2 Executioner 4 | . . . . . . . . . . . . . . . . . . . . . . . . . . . . . . . . . . 1 2 1 Zionite 1 | . . . . . . . . . . . . . . . . . . . 1 . . . . . . . . . . . . . . . . . Tinkerer 2 | . . . . . . . . . . . 1 . . . . . . . 1 . . . . . . . . . . . . . . . . . Thug 1 | . . . . . . . . . . . . . . . . . . . 1 . . . . . . . . . . . . . . . . . Martyr 2 | . . . . . . . . . . . . . . 1 . . . . . . . 1 . . . . . . . . . . . . . . Best Kill Streak 28 | 3 3 . 4 6 . 1 9 . 3 1 . 2 . 1 . 5 . . 1 2 2 . 3 2 . 1 9 5 . 13 3 6 1 14 16 28 Combat Bots Only 26 | . 3 . 3 3 . . 6 . 1 . . 1 . . . 1 . . 1 2 . . 1 1 . . 5 5 . 11 1 6 1 13 11 26 Max Kills in Single Turn 8 | 3 1 . 2 2 . 1 4 . 1 1 1 1 . 1 . 1 . . 1 1 1 1 1 1 . 1 7 3 . 4 1 1 1 8 5 4 Gunslinging . | . . . . . . . . . . . . . . . . . . . . . . . . . . . . . . . . . . . . . Exploded 5 | . . . 2 1 . . 3 . . . . . . . . . . . . . . . . . . . 5 3 . 4 . . . 3 2 2 Melee 1 | . . . 1 . . . 1 . 1 . . . . . . 1 . . 1 1 . . 1 1 . . . 1 . 1 1 1 . . 1 . Uniques/NPCs Destroyed 7 | . . . . . . . . . . . . . . 1 . . . . 1 . . . . 2 . . . . . 1 1 . 1 . . . DW-4LL (-6/Factory) Imprinter (-6/Zion) 6S-H0T (-5/Extension) A7 (-5/Extension) QV-33N (-4/Factory) CL-0N3 (-3/Research) A5 (-3/Lab) Combat | -11 -10 -10 -9 -9 -9 -8 -8 -8 -8 -8 -8 -6 -6 -6 -6 -6 -6 -6 -6 -5 -5 -5 -5 -5 -5 -5 -5 -4 -4 -4 -3 -3 -3 -2 -1 -1 -------- Run | Yrd Mat Min Mat Min Exi Min Mat Gar Sto Rec Scr Fac Was Fac Gar Fac Low Low Zio Pro Fac Was Fac Ext Cet Arc Hub Fac Was Fac Res Arm Lab Res Acc Com Hostile Shots Fired 1931 | . 55 5 86 8 . 4 65 4 5 . 3 20 . 11 11 12 . 4 1 18 . . 49 53 6 5 14 245 . 75 58 67 8 269 319 451 Missed 817 | . 15 3 28 6 . 2 21 2 4 . . 17 . 10 1 7 . 4 1 7 . . 30 30 4 1 10 120 . 44 28 34 1 61 192 134 Deflected 44 | . . . . . . . . . . . . . . . . . . . . . . . . . . . . . . . . 1 1 30 4 8 Hits 1114 | . 40 2 58 2 . 2 44 2 1 . 3 3 . 1 10 5 . . . 11 . . 19 23 2 4 4 125 . 31 30 33 7 208 127 317 Melee 93 | . . . . . . . 37 . . . . 1 . . . 2 . . . . . . . . . . . 23 . 1 . . . 1 7 21 Projectile 1021 | . 40 2 58 2 . 2 7 2 1 . 3 2 . 1 10 3 . . . 11 . . 19 23 2 4 4 102 . 30 30 33 7 207 120 296 AOE 71 | . . . . . . . 3 . . . . . . 1 1 . . 1 . . . . 3 . . . . 2 . 1 . . . 3 11 45 Critical Strikes 97 | . 1 . 5 . . . 12 . . . 1 . . . . . . . . 1 1 . . 3 . . . 26 . 8 4 . 1 5 7 22 Actively Blocked 65 | . . . . . . . . . . . . . . . . . . . . 1 1 . . 3 . . . 23 . 1 4 . 1 2 7 22 Part Disruptions 2 | . . . . . . . . . . . . . . . . . . . . . . . 1 . . . . . . . 1 . . . . . Damage Taken 27357 | 22 478 27 781 20 . 37 832 22 63 . 41 49 . 57 205 84 . 22 . 220 15 . 439 666 65 112 232 2988 . 991 681 971 158 4017 3620 9442 Core 4577 | 11 168 11 313 9 . . 493 . . . 33 25 . . 44 32 . . . 89 . . 157 219 . . 19 859 . 178 105 52 25 124 86 1525 Absorbed by Shields 3470 | . . . . . . . . 4 . . . . . . . . . . . . . . . . . . . . . . . 53 . . . 3413 Redirected to Shielding 91 | . . . . . . . . . . . . . . . . . . . . . . . . . . . . . . . . 91 . . . . Ignored by Resistances 980 | . . . . . . . . . . . . . . . . . . . . . . . . . . . . . . . . . . 755 12 213 Regen/Repaired (Parts) 2275 | . . . . . . . 154 . 12 . . 104 90 64 26 75 . . . . . 107 104 . . . . 665 . . 164 . 148 . 562 . Core Remaining (%) 53 | 95 . 24 . . . 19 . . . . 4 . . . . . . . . 77 . . . . . . 60 . . 9 . . 98 91 . . Volleys Fired 730 | 1 91 . 14 4 . . 6 . 1 . . . . 1 . . . . . . . . 2 11 . . . 16 . 24 13 46 32 187 185 96 Largest 2 | 2 2 . 1 1 . . 1 . 1 . . . . 1 . . . . . . . . 1 1 . . . 1 . 1 1 2 1 2 2 2 Hottest 207 | 60 60 . 33 33 . . 100 . 30 . . . . . . . . . . . . . 7 33 . . . 113 . 46 113 160 130 130 207 158 Shots Fired 820 | 2 139 . 14 4 . . 6 . 1 . . . . 1 . . . . . . . . 2 11 . . . 16 . 24 13 50 32 191 190 124 Gun 196 | 2 139 . 12 . . . 1 . . . . . . . . . . . . . . . . 5 . . . . . . . . . 11 . 26 Cannon 465 | . . . . . . . . . . . . . . . . . . . . . . . . . . . . 3 . . 2 39 32 151 157 81 Launcher 123 | . . . 2 4 . . 4 . 1 . . . . . . . . . . . . . . . . . . 13 . 15 1 10 . 27 29 17 Special 36 | . . . . . . . 1 . . . . . . 1 . . . . . . . . 2 6 . . . . . 9 10 1 . 2 4 . Kinetic 158 | 1 91 . 12 . . . 1 . . . . . . . . . . . . . . . . 5 . . . . . . . . . . . 48 Thermal 461 | . 41 . . . . . 1 . . . . . . . . . . . . . . . . . . . . 3 . . 2 39 32 151 153 39 Explosive 54 | . . . 2 4 . . 4 . 1 . . . . . . . . . . . . . . . . . . 13 . 13 . . . 4 9 4 Electromagnetic 112 | 1 7 . . . . . . . . . . . . . . . . . . . . . . . . . . . . 2 1 10 . 34 24 33 Robot Hit Streak 24 | 2 11 . 6 1 . . . . . . . . . 1 . . . . . . . . 3 7 . . . 1 . 4 5 8 6 14 21 24 Robot Miss Streak 8 | . 5 . 1 . . . 3 . . . . . . . . . . . . . . . . 1 . . . 2 . 2 . 4 3 8 5 5 Penetration Max 1 | . . . . . . . . . . . . . . . . . . . . . . . . . . . . . . . . . . . . 1 Secondary Targets . | . . . . . . . . . . . . . . . . . . . . . . . . . . . . . . . . . . . . . Capacitor 106 | . . . . . . . . . . . . . . . . . . . . . . . . . . . . . . . . 38 32 36 . . Shots Hit Robots 877 | 2 84 . 34 3 . 4 42 . 6 3 1 20 . 16 1 23 . . 7 6 5 1 31 42 . 2 . 46 4 15 48 50 11 144 131 95 Core Hits 777 | 3 40 . 11 5 . 1 25 . 1 . 1 5 . 3 . 5 . . 2 3 1 1 10 7 . 2 12 41 . 30 22 32 5 187 161 161 Critical Kills 11 | 1 . . . . . 1 . . . . 1 1 . 1 . . . . . . . . 2 1 . . . . . . . . . 1 2 . Critical Parts Destroyed 32 | . . . 1 . . . 4 . 3 . . 4 . 3 . 6 . . . . 2 . 5 3 . . . 1 . . . . . . . . Critical Strikes 59 | 1 . . 1 . . 1 6 . 3 . 1 5 . 4 . 7 . . . 1 2 . 8 7 . . . 3 . 1 3 2 . 1 2 . Meltdown 3 | . . . . . . . . . . . . . . . . . . . . . . . . . . . . . . . . . . 1 2 . Destroy 1 | 1 . . . . . . . . . . . . . . . . . . . . . . . . . . . . . . . . . . . . Smash 40 | . . . 1 . . 1 4 . 3 . 1 5 . 4 . 6 . . . . 2 . 7 5 . . . 1 . . . . . . . . Sever 4 | . . . . . . . . . . . . . . . . 1 . . . 1 . . . . . . . . . . . 2 . . . . Impale 11 | . . . . . . . 2 . . . . . . . . . . . . . . . 1 2 . . . 2 . 1 3 . . . . . Melee Attacks 742 | . . . 40 2 . 4 79 5 15 4 3 42 . 32 40 59 7 3 8 9 6 2 58 70 . 2 8 91 5 12 109 27 . . . . Impact 294 | . . . 40 2 . 4 36 5 15 4 3 37 . 15 13 39 5 2 . 1 5 1 30 31 . . 1 5 . . . . . . . . Slashing 145 | . . . . . . . 5 . . . . . . 12 27 20 2 1 8 8 1 1 20 . . . . . . . 13 27 . . . . Piercing 268 | . . . . . . . 38 . . . . . . . . . . . . . . . 8 27 . 2 7 84 . 12 90 . . . . . Sneak Attacks 139 | . . . 6 2 . 3 18 . 4 3 1 15 . 11 . 8 . . 1 . 2 1 10 17 . 2 . 7 . 4 22 2 . . . . Combat Hostiles 7 | . . . . . . . . . . . . 3 . . . . . . . . . . . 1 . . . 1 . . 2 . . . . . Follow-up Attacks 19 | . . . . . . . 1 . . . . . . 1 . 8 . . . . . . 5 4 . . . . . . . . . . . . Damage Inflicted 78633 | 91 882 . 1696 540 . 244 2712 . 634 377 135 1439 . 1255 45 1769 . . 416 258 384 96 2315 1599 . 193 1301 4363 . 3652 3273 4894 619 16802 15327 11322 Guns 1845 | 26 882 . 63 . . . . . . . . . . . . . . . . . . . . . . . . . . . . . . 21 . 853 Cannons 30154 | . . . . . . . . . . . . . . . . . . . . . . . . . . . . . . . . 3112 619 10946 11484 3993 Explosions 24250 | 65 . . 199 289 . . 633 . 22 . . . . . . . . . . . . . . . . . 1299 2172 . 3047 68 335 . 5835 3828 6458 Melee 22306 | . . . 1434 251 . 244 2079 . 612 377 135 1439 . 1255 45 1769 . . 416 258 384 96 2315 1576 . 193 . 2191 . 585 3205 1447 . . . . Ramming 78 | . . . . . . . . . . . . . . . . . . . . . . . . 23 . . 2 . . 20 . . . . 15 18 Kinetic 2011 | 14 554 . 63 . . . . . . . . . . . . . . . . . . . . . . . . . . . . . . . . 1380 Thermal 31329 | 65 304 . . . . . . . . . . . . . . . . . . . . . . . . . . . . 413 . 3112 619 12076 11615 3125 Explosive 12930 | . . . 199 289 . . 633 . 22 . . . . . . . . . . . . . . . . . . 2172 . 2523 . . . 1282 2132 3678 Electromagnetic 9979 | 12 24 . . . . . . . . . . . . . . . . . . . . . . . . . 1299 . . 111 68 335 . 3444 1565 3121 Impact 11326 | . . . 1434 251 . 244 1080 . 612 377 135 1439 . 1053 45 1308 . . . . 384 . 1690 1021 . . . 253 . . . . . . . . Slashing 3947 | . . . . . . . 150 . . . . . . 202 . 461 . . 416 258 . 96 406 . . . . . . . 511 1447 . . . . Piercing 7033 | . . . . . . . 849 . . . . . . . . . . . . . . . 219 555 . 193 . 1938 . 585 2694 . . . . . Highest Corruption 47 | . . . 2 2 2 2 2 2 2 2 . 4 4 4 4 4 4 4 4 . . . . 1 4 4 1 4 12 18 . 2 3 17 5 47 Average Corruption 5 | . . . 2 2 2 2 1 2 2 2 . 4 4 4 4 4 4 4 4 . . . . 1 4 2 1 2 10 13 . 1 1 3 1 39 Corruption Purged 14 | . . . . . . . . . . . . . . . . . . . . . . . . . . 4 . . . . . 2 . . 8 . Corruption Blocked . | . . . . . . . . . . . . . . . . . . . . . . . . . . . . . . . . . . . . . Effects 222 | . . . 4 3 1 1 6 . 3 2 . 11 4 20 15 21 5 4 3 . . . . . 2 1 . 1 4 47 . 12 . 21 2 29 Message Errors 50 | . . . 2 . . . 2 . . . . 1 1 5 6 9 . . 1 . . . . . . . . 1 . 10 . 3 . 5 . 4 Matter Fused 63 | . . . . 2 . . 3 . . 1 . 3 1 6 3 5 2 2 1 . . . . . 1 . . . . 13 . 4 . 7 . 9 Heat Flow Errors 26 | . . . . . . . . . 2 . . 1 . 2 3 2 1 . . . . . . . 1 1 . . 1 4 . 2 . 3 1 2 Energy Discharges 28 | . . . . . 1 1 . . . . . 3 . 1 1 3 1 1 1 . . . . . . . . . 1 9 . 1 . 1 . 3 Parts Rejected 5 | . . . . . . . . . . . . . . 1 . 1 . 1 . . . . . . . . . . . . . . . 1 1 . Parts Fused 5 | . . . . . . . . . . . . . . 1 1 . 1 . . . . . . . . . . . . 1 . . . . . 1 Data Loss (minor) 18 | . . . 1 . . . . . . 1 . 3 2 3 1 1 . . . . . . . . . . . . . 2 . . . 1 . 3 Data Loss (major) 8 | . . . . 1 . . . . 1 . . . . . . . . . . . . . . . . . . . . 4 . 1 . . . 1 Misfires 3 | . . . . . . . . . . . . . . . . . . . . . . . . . . . . . . . . 1 . 2 . . Alerts 6 | . . . 1 . . . 1 . . . . . . 1 . . . . . . . . . . . . . . . 2 . . . 1 . . Misdirections 7 | . . . . . . . . . . . . . . . . . . . . . . . . . . . . . 2 2 . . . . . 3 Weapon Failures 3 | . . . . . . . . . . . . . . . . . . . . . . . . . . . . . . . . . . . . 3 Overload Shots . | . . . . . . . . . . . . . . . . . . . . . . . . . . . . . . . . . . . . . Overflow Damage 8454 | . . . 311 189 . 94 551 . 560 165 . 640 . 628 . 678 . . 107 . 236 . 883 456 . . 22 386 . 358 496 407 . 696 509 82 Projectiles 1499 | . . . . . . . 46 . . . . . . . . . . . . . . . . . . . . . . . . 330 . 595 456 72 Explosions 571 | . . . . . . . 17 . . . . . . . . . . . . . . . . . . . 22 72 . 296 . . . 101 53 10 Melee 6384 | . . . 311 189 . 94 488 . 560 165 . 640 . 628 . 678 . . 107 . 236 . 883 456 . . . 314 . 62 496 77 . . . . Knockbacks 35 | . . . 1 . . 1 8 . 1 1 . 4 . 1 . 3 . . . . . . . 9 . . . . . . . . . . . 6 Impact 28 | . . . 1 . . 1 7 . 1 1 . 4 . 1 . 3 . . . . . . . 9 . . . . . . . . . . . . Kinetic 4 | . . . . . . . . . . . . . . . . . . . . . . . . . . . . . . . . . . . . 4 Secondary 3 | . . . . . . . 1 . . . . . . . . . . . . . . . . . . . . . . . . . . . . 2 Self-Inflicted Damage 1442 | 22 . . 17 1 . . 42 . . . . . . . . . . . . . . . . 11 . . 122 145 . 18 . 26 . 280 247 511 Shots 66 | 1 . . 1 1 . . 1 . . . . . . . . . . . . . . . . . . . 3 4 . 1 . 3 . 9 16 26 Rammed 7 | . . . . . . . . . . . . . . . . . . . . . . . . 1 . . 1 . . 1 . . . . . 4 Targets Rammed 8 | . . . . . . . . . . . . . . . . . . . . . . . . 1 . . 1 . . 1 . . . . 1 4 Kicked 1 | . . . . . . . . . . . . . . . . . . . . . . . . . . . . . . . . . . . 1 . Crushed . | . . . . . . . . . . . . . . . . . . . . . . . . . . . . . . . . . . . . . Highest Temperature 563 | 12 11 . 4 . . . . 4 224 . 191 329 . 201 196 157 118 . 19 . . . 29 35 196 103 37 100 143 271 469 258 153 563 . 171 Average Temperature 72 | 12 2 . 2 . . . . 4 65 . 114 113 . 89 94 67 61 . 17 . . . 17 12 80 70 16 25 78 81 59 84 75 142 . 56 Received Heat Transfer 2725 | . 213 15 426 . . 18 . 15 9 . 49 9 . 12 9 6 . 12 . 99 . . 102 84 9 9 27 524 . 140 84 57 . 90 117 590 Effects 4 | . . . . . . . . . . . . 1 . . . . . . . . . . . . . . . . . . . . . 3 . . Matter Decay 1 | . . . . . . . . . . . . 1 . . . . . . . . . . . . . . . . . . . . . . . . Short Circuit 1 | . . . . . . . . . . . . . . . . . . . . . . . . . . . . . . . . . . 1 . . Damage (major) 2 | . . . . . . . . . . . . . . . . . . . . . . . . . . . . . . . . . . 2 . . Siege Activations . | . . . . . . . . . . . . . . . . . . . . . . . . . . . . . . . . . . . . . Martial Activations . | . . . . . . . . . . . . . . . . . . . . . . . . . . . . . . . . . . . . . Shielding Activations 17 | . . . . . . . . . . . . . . . . . . . . . . . . . . . . . . . . 2 1 8 3 3 Total Turns 216 | . . . . . . . . . . . . . . . . . . . . . . . . . . . . . . . . 24 9 93 24 66 Longest Duration 30 | . . . . . . . . . . . . . . . . . . . . . . . . . . . . . . . . 19 9 30 12 25 Robots Disrupted 2 | . . . . . . . . . . . . . . . . . . . . . . . . . . . . . . . . . . 2 . . Combat Hostiles 2 | . . . . . . . . . . . . . . . . . . . . . . . . . . . . . . . . . . 2 . . Robots Corrupted 78 | . . . 5 . . 1 8 . 4 2 . 5 . 3 . 5 . . . . 2 . 2 1 . . . 2 . . . 2 . 12 8 16 Combat Hostiles 40 | . . . 1 . . . 1 . . . . 1 . . . . . . . . . . . . . . . . . . . 2 . 11 8 16 Parts Fried 124 | . . . 4 1 . 3 8 . 6 6 . 14 . 9 . 4 . . . . 3 . 4 . . . 3 3 . . . 5 . 20 15 16 Impact Corruptions 124 | . . . 8 2 . 4 21 . 12 5 . 12 . 12 . 17 . . . . 5 . 10 14 . . . 2 . . . . . . . . Robots Melted 12 | . . . . . . . . . . . . . . . . . . . . . . . . . . . . . . . . . 1 2 7 2 Combat Hostiles 9 | . . . . . . . . . . . . . . . . . . . . . . . . . . . . . . . . . 1 1 5 2 Parts Melted 64 | . 1 . . . . . . . . . . . . . . . . . . . . . . . . . . . . . . 11 1 14 35 2 Heat Transferred 23971 | 150 675 . . . . . . . . . . . . . . . . . . . . . . . . . . . . 225 . 2294 591 9460 8652 1924 Parts Sabotaged 2 | . . . . . . . . . . . . . . . . . . . . . . . . . . . . . . . . . . 2 . . Parts Stolen . | . . . . . . . . . . . . . . . . . . . . . . . . . . . . . . . . . . . . . Parts Stripped . | . . . . . . . . . . . . . . . . . . . . . . . . . . . . . . . . . . . . . Power Chain Reactions 26 | 1 . . . . . . . . . . . . . . . . . . . . . . . . . . 1 . . . 1 2 . 13 5 3 Alert | -11 -10 -10 -9 -9 -9 -8 -8 -8 -8 -8 -8 -6 -6 -6 -6 -6 -6 -6 -6 -5 -5 -5 -5 -5 -5 -5 -5 -4 -4 -4 -3 -3 -3 -2 -1 -1 ------- Run | Yrd Mat Min Mat Min Exi Min Mat Gar Sto Rec Scr Fac Was Fac Gar Fac Low Low Zio Pro Fac Was Fac Ext Cet Arc Hub Fac Was Fac Res Arm Lab Res Acc Com Maximum Alert Level 5 | . 1 . 1 1 . . . 1 1 1 . . . 5 5 5 . . . . . . 5 5 4 2 2 3 1 4 2 3 . 5 5 5 Low Security (%) 40 | 100 98 100 79 96 . 100 100 74 23 89 . 100 100 10 . . . . . . 100 100 15 . . 51 94 35 74 48 45 18 . 27 . . Level 1 10 | . 1 . 20 3 . . . 25 76 10 . . . 5 . . . . . . . . 8 . . 30 3 19 25 36 17 20 . 9 . . Level 2 8 | . . . . . . . . . . . . . . 1 . . . . . . . . 7 . . 18 1 43 . 5 36 25 . 3 . . Level 3 7 | . . . . . . . . . . . . . . 54 . 13 . . . . . . 11 . . . . 2 . 8 . 35 . 5 . . Level 4 4 | . . . . . . . . . . . . . . 19 16 24 . . . . . . 8 . 100 . . . . 1 . . . 15 . . Level 5 9 | . . . . . . . . . . . . . . 8 83 14 . . . . . . 8 63 . . . . . . . . . 21 10 23 High Security 19 | . . . . . . . . . . . . . . . . 46 . . . . . . 40 36 . . . . . . . . . 17 89 76 Max Security . | . . . . . . . . . . . . . . . . . . . . . . . . . . . . . . . . . . . . . Sterilizations 2 | . . . . . . . . . . . . . . . . . . . . . . . 1 . . . . . . . . . . . 1 . Peak Influence 5960 | 15 202 105 321 204 . 81 181 224 325 213 . 150 46 1870 2685 3634 . . . . 71 8 4170 2571 1392 545 474 711 205 1160 641 1007 . 3808 5960 4830 Initial 3814 | . 3 52 33 109 . . . 63 109 117 . . 46 . 1130 1409 . . . . 18 8 . 2043 1392 540 1 154 205 122 462 234 . . 2284 3814 Average 1260 | 1 75 67 105 124 . 3 74 117 252 156 . 57 13 950 2214 2035 . . . . 18 . 1749 2302 1375 221 43 319 189 275 293 548 . 1337 4850 4284 Influence Increases 41052 | 15 455 163 565 180 . 96 511 161 402 147 . 749 . 2707 1705 3677 119 . . 99 188 . 7049 1404 . 10 816 2868 . 2018 1275 1735 . 4961 5056 1921 Destroy 0b10 Robot/C 18440 | . 260 80 180 60 . 60 240 . 160 . . 260 . 1020 680 1460 100 . . 80 40 . 2920 620 . . 100 1440 . 800 480 940 . 2220 2880 1360 Destroy 0b10 Robot/NC 1455 | 15 40 . 35 20 . 15 110 . 25 15 . 80 . 65 . 90 . . . . 35 . 140 25 . 10 20 55 . 65 105 10 . 245 200 35 Destroy Leader 3278 | . 54 20 44 10 . 10 44 . 38 . . 102 . 204 50 268 . . . 10 30 . 532 54 . . 16 278 . 188 94 222 . 416 420 174 Allied During Kill 9669 | . . 3 . . . 11 . . 32 . . 48 . 1202 730 1719 19 . . 9 40 . 3186 553 . . . 291 . 451 140 165 . 523 386 161 Trap Triggered on 0b10 50 | . . . . . . . . . . . . . . . . . . . . . . . . 20 . . 30 . . . . . . . . . Successful Hack 1142 | . 26 . 5 . . . 51 16 14 11 . 56 . 106 28 39 . . . . 13 . 68 4 . . 49 148 . 185 218 30 . 42 33 . Select Force Hacks 120 | . . . . . . . . . . 120 . . . . . . . . . . . . . . . . . . . . . . . . . . Disable Machine 1005 | . . . 15 . . . . . 15 . . 30 . 15 15 15 . . . . 15 . 60 30 . . 210 60 . 75 . 135 . 225 60 30 Anti-Garrison Action 450 | . . . . . . . . 50 . . . . . . 100 . . . . . . . . . . . . . . . . . . 150 150 . Destroy Structure 3253 | . . . 16 30 . . 51 20 13 1 . 8 . 35 72 26 . . . . . . 38 38 . . 346 206 . 224 88 128 . 1005 792 116 Partial Spotted 465 | . 15 . 45 . . . . . 30 . . 30 . 60 30 30 . . . . 15 . 75 15 . . 45 45 . 15 15 . . . . . Lose Combat Pursuer 1725 | . 60 60 225 60 . . 15 75 75 . . 135 . . . 30 . . . . . . 30 45 . . . 345 . 15 135 105 . 135 135 45 Influence Decreases 36317 | 10 325 213 368 313 149 96 414 34 325 364 84 617 132 1092 635 2826 1539 513 1603 68 195 24 2879 3087 1135 1357 505 2598 411 1311 1710 1187 995 1153 2904 3146 Entered New Map 15999 | . 2 83 52 173 149 . . 34 115 184 84 . 86 . 485 1276 1309 403 1603 . 13 16 . 2127 1095 812 4 162 381 53 420 213 995 . 1524 2146 Time Decay 7443 | 10 273 100 206 140 . 36 334 . 170 180 . 407 46 442 . 230 130 90 . 58 162 8 464 350 40 545 41 556 30 458 550 644 . 493 150 100 Lost Part 1100 | . 50 10 110 . . . 80 . . . . . . . . 10 . . . 10 . . 50 40 . . 10 250 . 80 20 10 . 10 60 300 Lost Ally 7275 | . . 20 . . . 60 . . 40 . . 60 . 200 150 560 100 20 . . 20 . 1615 570 . . . 730 . 420 420 320 . 650 720 600 Purge Threat 4500 | . . . . . . . . . . . . 150 . 450 . 750 . . . . . . 750 . . . 450 900 . 300 300 . . . 450 . Squads Dispatched 277 | . 2 . 3 . . . 4 . 5 . . 10 . 14 . 25 . . . . 3 . 37 19 . . 3 22 . 13 11 9 . 31 42 24 Investigation 35 | . . . 2 . . . 1 . 1 . . 4 . 2 . 5 . . . . 2 . 5 . . . 2 3 . 3 1 1 . 3 . . Extermination 36 | . . . . . . . . . . . . 5 . 3 . 1 . . . . . . 5 . . . . 3 . 3 6 6 . 4 . . Reinforcement 68 | . 2 . 1 . . . 3 . 2 . . 1 . 5 . 2 . . . . 1 . 10 1 . . 1 12 . 6 4 2 . 8 5 2 Assault 120 | . . . . . . . . . 2 . . . . 3 . 17 . . . . . . 16 18 . . . . . 1 . . . 13 28 22 Garrison 17 | . . . . . . . . . . . . . . 1 . . . . . . . . 1 . . . . 4 . . . . . 2 9 . Intercept 1 | . . . . . . . . . . . . . . . . . . . . . . . . . . . . . . . . . . 1 . . Searches Triggered . | . . . . . . . . . . . . . . . . . . . . . . . . . . . . . . . . . . . . . Unchained Authorized 6 | . . . . . . . . . . . . . . 1 . . . . . . . . . 1 . . . 1 . 1 1 . . 1 . . Construction Impeded 12 | . . . . . . . . . 1 . . 1 . . . . . . . . . . . . . . . 4 . . . . . 4 2 . Haulers Reinforced 14 | . . . . . . . . . . . . . . 2 . 2 . . . . . . 3 . . . . 2 . 1 . . . 3 1 . Active Scanning Responses . | . . . . . . . . . . . . . . . . . . . . . . . . . . . . . . . . . . . . . Cargo Convoy Interrupts 3 | . . . . . . . . . . . . . . 1 . . . . . . . . 1 . . . . . . 1 . . . . . . Stealth | -11 -10 -10 -9 -9 -9 -8 -8 -8 -8 -8 -8 -6 -6 -6 -6 -6 -6 -6 -6 -5 -5 -5 -5 -5 -5 -5 -5 -4 -4 -4 -3 -3 -3 -2 -1 -1 --------- Run | Yrd Mat Min Mat Min Exi Min Mat Gar Sto Rec Scr Fac Was Fac Gar Fac Low Low Zio Pro Fac Was Fac Ext Cet Arc Hub Fac Was Fac Res Arm Lab Res Acc Com Distress Signals 48 | . 4 . 3 . . . 1 . 1 . . 3 . . . 1 . . . . . . 8 1 1 . 2 3 . 2 3 3 . 6 4 2 Communications Jammed 27 | . . . . . . . . . . . . . . . . . . . . . . . . . . . . . . . . . . . 27 . Distress Signals 25 | . . . . . . . . . . . . . . . . . . . . . . . . . . . . . . . . . . . 25 . Times Spotted 1120 | . 32 5 33 7 . 2 21 5 11 . 20 16 . 25 28 48 . 1 3 7 5 . 121 84 5 4 11 107 6 61 40 48 1 106 136 121 Peak Tracking Total 56 | . 6 2 11 3 . 2 4 8 7 . 22 4 . 8 6 7 . 1 1 4 1 . 17 45 5 4 11 16 4 10 11 6 1 10 13 56 Tactical Retreats 60 | . 2 3 7 2 . . 1 1 3 . . 6 . . . 2 . . . . . . 1 3 . . . 8 . 1 2 3 . 8 5 2 ID Masks Used 1 | . . . . . . . . . . . . . . . . . . . . . . . . 1 . . . . . . . . . . . . IFF Responses 20 | . . . . . . . . . . . . . . . . . . . . . . . . 20 . . . . . . . . . . . . Traps | -11 -10 -10 -9 -9 -9 -8 -8 -8 -8 -8 -8 -6 -6 -6 -6 -6 -6 -6 -6 -5 -5 -5 -5 -5 -5 -5 -5 -4 -4 -4 -3 -3 -3 -2 -1 -1 ------- Run | Yrd Mat Min Mat Min Exi Min Mat Gar Sto Rec Scr Fac Was Fac Gar Fac Low Low Zio Pro Fac Was Fac Ext Cet Arc Hub Fac Was Fac Res Arm Lab Res Acc Com Traps Triggered 41 | . 1 . 2 . . . 1 1 1 . . 4 . . . . . . . . 1 . 1 2 . . 2 4 . 6 1 7 . 3 3 1 Indirectly 10 | . . . . . . . . . . . . . . . . . . . . . . . . . . . 2 . . . . 5 . 1 2 . Trap Hack Attempts 3 | . . . . . . . . . . . . . . . . . . . . . . . 3 . . . . . . . . . . . . . Triggered . | . . . . . . . . . . . . . . . . . . . . . . . . . . . . . . . . . . . . . Disarmed 20 | . . . . . . . . . . . . 6 . . . . . . . . . . . . . . . 10 . 4 . . . . . . Reprogrammed 17 | . . . 1 . . . . . . . . . . . . . . . . . . . 8 . . . 8 . . . . . . . . . Reused 5 | . . . . . . . . . . . . . . . . . . . . . . . . 2 . . 3 . . . . . . . . . Traps Extracted 6 | . . . . . . . . . . . . . . . . . . . . . . . 2 . . . 4 . . . . . . . . . Installed 2 | . . . . . . . . . . . . . . . . . . . . . . . . 2 . . . . . . . . . . . . Triggered 5 | . . . . . . . . . . . . . . . . . . . . . . . . 2 . . 3 . . . . . . . . . Most Traps Carried 4 | . . . . . . . . . . . . . . . . . . . . . . . 2 2 . . 4 4 4 . . . . . . . Objects Rigged 4 | . . . . . . . . . . . . . . . . . . . . . . . . . . . 4 . . . . . . . . . Exploded 2 | . . . . . . . . . . . . . . . . . . . . . . . . . . . 2 . . . . . . . . . Machines | -11 -10 -10 -9 -9 -9 -8 -8 -8 -8 -8 -8 -6 -6 -6 -6 -6 -6 -6 -6 -5 -5 -5 -5 -5 -5 -5 -5 -4 -4 -4 -3 -3 -3 -2 -1 -1 ---------- Run | Yrd Mat Min Mat Min Exi Min Mat Gar Sto Rec Scr Fac Was Fac Gar Fac Low Low Zio Pro Fac Was Fac Ext Cet Arc Hub Fac Was Fac Res Arm Lab Res Acc Com Machines Disabled 92 | . . . 1 . . . . 1 1 . 2 2 . 1 3 1 1 1 . . 1 . 6 2 . . 14 4 . 5 . 9 5 16 14 2 Max in Single Turn 7 | . . . 1 . . . . 1 1 . 1 1 . . 1 . 1 1 . . 1 . 1 1 . . 7 1 . 2 . 1 2 1 1 1 Garrison Access 17 | . . . . . . . . . 1 . . . . 1 . . . . . . 1 . 2 . . . 2 2 . 2 3 . . 1 2 . Garrison Relay 3 | . . . . . . . . 1 . . . . . . 2 . . . . . . . . . . . . . . . . . . . . . Network Hub 2 | . . . . . . . . . . . . . . . . . . . . . . . . . . . 2 . . . . . . . . . Energy Cycler 1 | . . . . . . . . . . . . . . . . . . . . . . . . 1 . . . . . . . . . . . . Machines Repaired . | . . . . . . . . . . . . . . . . . . . . . . . . . . . . . . . . . . . . . Machines Dismantled . | . . . . . . . . . . . . . . . . . . . . . . . . . . . . . . . . . . . . . Machines Sabotaged . | . . . . . . . . . . . . . . . . . . . . . . . . . . . . . . . . . . . . . Overloaded Fab Kills . | . . . . . . . . . . . . . . . . . . . . . . . . . . . . . . . . . . . . . Hacking | -11 -10 -10 -9 -9 -9 -8 -8 -8 -8 -8 -8 -6 -6 -6 -6 -6 -6 -6 -6 -5 -5 -5 -5 -5 -5 -5 -5 -4 -4 -4 -3 -3 -3 -2 -1 -1 --------- Run | Yrd Mat Min Mat Min Exi Min Mat Gar Sto Rec Scr Fac Was Fac Gar Fac Low Low Zio Pro Fac Was Fac Ext Cet Arc Hub Fac Was Fac Res Arm Lab Res Acc Com Machines Accessed 213 | . 7 . 6 . 2 . 12 2 9 9 . 22 . 12 3 13 . 1 . . 11 . 22 7 . . 10 23 . 20 15 1 . 1 3 2 Terminals 111 | . 6 . 3 . . . 7 2 6 5 . 9 . 4 3 5 . . . . 6 . 9 7 . . 8 11 . 10 5 . . . 3 2 Fabricators 30 | . . . . . . . . . . . . 5 . 4 . 4 . . . . 2 . 6 . . . . 3 . 2 2 1 . 1 . . Repair Stations 15 | . 1 . 1 . . . 1 . 1 . . 2 . 1 . 1 . . . . . . 2 . . . . 2 . 1 2 . . . . . Recycling Units 25 | . . . . . . . 2 . 1 4 . 5 . 1 . 1 . . . . . . 2 . . . . 4 . 4 1 . . . . . Scanalyzers 13 | . . . 2 . . . 1 . . . . 1 . . . 2 . . . . 2 . 1 . . . . 1 . 1 2 . . . . . Garrison Access 16 | . . . . . . . 1 . 1 . . . . 2 . . . . . . 1 . 2 . . . 2 2 . 2 3 . . . . . Total Hacks 861 | . 16 . 17 . 5 . 71 3 35 24 . 97 . 34 7 53 . 1 . . 24 . 65 9 . . 50 135 . 112 66 12 . 5 17 3 Successful 554 | . 11 . 10 . 5 . 45 1 21 21 . 64 . 29 3 30 . 1 . . 15 . 46 6 . . 35 92 . 61 40 7 . 3 8 . Failed 304 | . 5 . 7 . . . 25 2 14 3 . 33 . 5 4 23 . . . . 8 . 19 3 . . 15 42 . 51 26 5 . 2 9 3 Catastrophic 45 | . . . 1 . . . 3 1 3 . . 7 . . 2 1 . . . . 1 . 1 1 . . 2 6 . 6 7 . . 2 . 1 Database Lockouts 3 | . . . . . . . 1 . . . . . . . . . . . . . 1 . . . . . . 1 . . . . . . . . Manual 394 | . 7 . 7 . 1 . 26 3 22 13 . 33 . 15 6 23 1 . 1 . 6 . 18 2 . . 29 69 . 61 35 9 . 2 4 1 Terminals 455 | . 15 . 8 . . . 27 3 27 16 . 39 . 10 7 25 . . . . 11 . 28 9 . . 47 73 . 68 22 . . . 17 3 Fabricators 138 | . . . . . . . . . . . . 24 . 12 . 16 . . . . 8 . 21 . . . . 15 . 10 15 12 . 5 . . Repair Stations 68 | . 1 . 2 . . . 18 . 4 . . 9 . 2 . 2 . . . . . . 6 . . . . 11 . 5 8 . . . . . Recycling Units 107 | . . . . . . . 5 . 3 8 . 16 . 6 . 6 . . . . . . 4 . . . . 26 . 21 12 . . . . . Scanalyzers 58 | . . . 7 . . . 14 . . . . 9 . . . 4 . . . . 3 . 3 . . . . 7 . 5 6 . . . . . Garrison Access 29 | . . . . . . . 7 . 1 . . . . 4 . . . . . . 2 . 3 . . . 3 3 . 3 3 . . . . . Terminal Hacks 160 | . 9 . 1 . 5 . 5 1 9 6 . 8 . 6 3 8 . 1 . . 3 . 14 6 . . 19 29 . 12 8 . . . 7 . Record 4 | . . . . . 4 . . . . . . . . . . . . . . . . . . . . . . . . . . . . . . . Part Schematic 9 | . . . . . . . . . 1 1 . . . . 1 . . . . . . . 2 . . . 1 1 . . 2 . . . . . Robot Schematic 3 | . 1 . . . . . . . 1 . . . . 1 . . . . . . . . . . . . . . . . . . . . . . Robot Analysis 3 | . 1 . . . . . . . . 1 . . . . . . . . . . . . . . . . . 1 . . . . . . . . Prototype ID Bank 3 | . . . . . . . . . . 2 . . . . . . . . . . . . . . . . . 1 . . . . . . . . Open Door 9 | . . . . . . . . . 1 . . . . . 1 . . 1 . . . . . 6 . . . . . . . . . . . . Open DSF 5 | . . . . . . . . . . . . . . 1 . . . . . . 1 . 1 . . . . 1 . 1 . . . . . . Level Access Points 2 | . . . . . . . . . . . . . . . . . . . . . . . . . . . . 1 . . . . . . 1 . Branch Access Points 5 | . . . . . . . 1 . 1 . . . . . . 1 . . . . . . 1 . . . . . . 1 . . . . . . Emergency Access Points 3 | . 1 . . . . . . . . . . . . . . . . . . . . . . . . . 2 . . . . . . . . . Machine Index 6 | . . . . . . . . . . . . . . 1 . . . . . . . . 1 . . . 1 1 . 1 . . . . 1 . Terminal Index 9 | . 1 . . . . . 1 . 1 1 . 1 . . . 1 . . . . . . . . . . 1 . . 1 . . . . 1 . Repair Station Index 1 | . . . . . . . . . . . . . . . . . . . . . . . . . . . . . . . . . . . 1 . Scanalyzer Index 2 | . . . . . . . 1 . . . . . . . . . . . . . . . . . . . . . . 1 . . . . . . Unreport Threat 29 | . . . . . . . . . . . . 1 . 3 . 5 . . . . . . 5 . . . 3 6 . 2 2 . . . 2 . Locate Traps 11 | . . . . . . . . . . . . 2 . . . 1 . . . . 1 . . . . . 2 4 . 1 . . . . . . Disarm Traps 4 | . . . . . . . . . . . . 1 . . . . . . . . . . . . . . . 2 . 1 . . . . . . Reprogram Traps 6 | . . . 1 . . . . . . . . . . . . . . . . . . . 2 . . . 3 . . . . . . . . . Assault Status 2 | . . . . . . . . . 1 . . . . . . . . . . . . . . . . . . 1 . . . . . . . . Recall Investigation 1 | . . . . . . . . . . . . . . . . . . . . . . . . . . . . 1 . . . . . . . . Recall Extermination 4 | . . . . . . . . . . . . 1 . . . . . . . . . . . . . . . 1 . 1 1 . . . . . Recall Reinforcements 7 | . . . . . . . . . 1 . . . . . . . . . . . . . 1 . . . 1 2 . 1 1 . . . . . Recall Assault 1 | . . . . . . . . . 1 . . . . . . . . . . . . . . . . . . . . . . . . . . . Hauler Manifests 3 | . . . . . . . . . 1 . . 1 . . . . . . . . . . . . . . . 1 . . . . . . . . Registered Components 7 | . 1 . . . . . 1 . . . . 1 . . . . . . . . 1 . . . . . 1 1 . . 1 . . . . . Registered Prototypes 6 | . 1 . . . . . . . . . . . . . . . . . . . . . 1 . . . 1 1 . . 1 . . . 1 . Zone Layout 12 | . 3 . . . . . 1 . . 1 . . . . . . . . . . . . . . . . 3 3 . 1 . . . . . . Garrison Registry 2 | . . . . . . . . 1 . . . . . . 1 . . . . . . . . . . . . . . . . . . . . . Proto ID Catalog 1 | . . . . . 1 . . . . . . . . . . . . . . . . . . . . . . . . . . . . . . . Fabricator Hacks 61 | . . . . . . . . . . . . 13 . 4 . 7 . . . . 3 . 13 . . . . 6 . 5 5 3 . 2 . . Network Status 8 | . . . . . . . . . . . . 1 . 1 . 1 . . . . 1 . 1 . . . . 1 . 1 . 1 . . . . Load Schematic 29 | . . . . . . . . . . . . 8 . . . 4 . . . . 1 . 7 . . . . 3 . 2 2 1 . 1 . . Build 24 | . . . . . . . . . . . . 4 . 3 . 2 . . . . 1 . 5 . . . . 2 . 2 3 1 . 1 . . Repair Station Hacks 54 | . 1 . 2 . . . 12 . 1 . . 7 . 2 . 2 . . . . . . 6 . . . . 11 . 2 8 . . . . . Scan Component 25 | . . . . . . . 6 . 1 . . 4 . 1 . 1 . . . . . . 3 . . . . 5 . . 4 . . . . . Repair 23 | . . . . . . . 6 . . . . 3 . 1 . 1 . . . . . . 3 . . . . 5 . . 4 . . . . . Refit 6 | . 1 . 2 . . . . . . . . . . . . . . . . . . . . . . . . 1 . 2 . . . . . . Recycling Unit Hacks 28 | . . . . . . . 2 . 1 4 . 5 . 2 . 2 . . . . . . . . . . . 6 . 5 1 . . . . . Report Inventory 10 | . . . . . . . . . . 2 . 2 . 1 . 1 . . . . . . . . . . . 3 . 1 . . . . . . Retrieve Components 18 | . . . . . . . 2 . 1 2 . 3 . 1 . 1 . . . . . . . . . . . 3 . 4 1 . . . . . Scanalyzer 39 | . . . 5 . . . 9 . . . . 9 . . . 1 . . . . 3 . 1 . . . . 4 . 3 4 . . . . . Insert Component 14 | . . . 2 . . . 4 . . . . 3 . . . 1 . . . . 1 . . . . . . . . 1 2 . . . . . Analyze 12 | . . . 2 . . . 4 . . . . 3 . . . . . . . . 1 . . . . . . . . 1 1 . . . . . Retrieve Study 13 | . . . 1 . . . 1 . . . . 3 . . . . . . . . 1 . 1 . . . . 4 . 1 1 . . . . . Garrison Access Hacks 21 | . . . . . . . 1 . 1 . . . . 2 . . . . . . 2 . 3 . . . 3 3 . 3 3 . . . . . Unlock Access 2 | . . . . . . . 1 . . . . . . 1 . . . . . . . . . . . . . . . . . . . . . . Seal Access 14 | . . . . . . . . . 1 . . . . 1 . . . . . . 1 . 2 . . . 2 2 . 2 3 . . . . . Coupler Status 5 | . . . . . . . . . . . . . . . . . . . . . 1 . 1 . . . 1 1 . 1 . . . . . . Unauthorized Hacks 191 | . 1 . 2 . . . 16 . 9 11 . 22 . 13 . 10 . . . . 4 . 9 . . . 13 33 . 31 11 4 . 1 1 . Terminals 89 | . 1 . 2 . . . 10 . 6 7 . 6 . 2 . 1 . . . . 1 . 2 . . . 13 17 . 16 4 . . . 1 . Track 15 | . . . . . . . 1 . . . . 1 . . . . . . . . . . . . . . 2 5 . 6 . . . . . . Assimilate 3 | . . . . . . . . . . . . . . . . . . . . . . . 1 . . . . 2 . . . . . . . . Botnet 23 | . . . . . . . 2 . 2 2 . 2 . 1 . 1 . . . . 1 . 1 . . . 3 2 . 4 2 . . . . . Detonate 5 | . . . . . . . 1 . . . . . . . . . . . . . . . . . . . 4 . . . . . . . . . Disrupt 4 | . . . . . . . 1 . . . . . . . . . . . . . . . . . . . 1 2 . . . . . . . . Operators 5 | . . . . . . . . . . . . 1 . . . . . . . . . . . . . . 1 1 . 1 . . . . 1 . Skim 32 | . 1 . 2 . . . 5 . 4 5 . 2 . 1 . . . . . . . . . . . . . 5 . 5 2 . . . . . Sabotage 2 | . . . . . . . . . . . . . . . . . . . . . . . . . . . 2 . . . . . . . . . Fabricators 46 | . . . . . . . . . . . . 7 . 6 . 5 . . . . 3 . 6 . . . . 6 . 5 3 4 . 1 . . Report 4 | . . . . . . . . . . . . 1 . 1 . . . . . . . . . . . . . . . 1 . 1 . . . . Prioritize 12 | . . . . . . . . . . . . 1 . 1 . 2 . . . . 1 . 2 . . . . 1 . 1 2 1 . . . . Liberate 4 | . . . . . . . . . . . . 1 . 1 . . . . . . . . . . . . . 1 . . . 1 . . . . Fabnet 8 | . . . . . . . . . . . . . . 2 . 1 . . . . . . . . . . . 2 . 1 1 1 . . . . Haulers 6 | . . . . . . . . . . . . . . 1 . . . . . . 1 . 1 . . . . 1 . 1 . . . 1 . . Recompile 12 | . . . . . . . . . . . . 4 . . . 2 . . . . 1 . 3 . . . . 1 . 1 . . . . . . Repair Stations 2 | . . . . . . . 1 . 1 . . . . . . . . . . . . . . . . . . . . . . . . . . . Patch 2 | . . . . . . . 1 . 1 . . . . . . . . . . . . . . . . . . . . . . . . . . . Recycling Units 50 | . . . . . . . 2 . 2 4 . 9 . 4 . 4 . . . . . . 1 . . . . 10 . 10 4 . . . . . Monitor 5 | . . . . . . . . . . . . 1 . 1 . 1 . . . . . . . . . . . 1 . . 1 . . . . . Reject 16 | . . . . . . . . . 1 . . 4 . 1 . 1 . . . . . . . . . . . 4 . 4 1 . . . . . Recyclers 10 | . . . . . . . 1 . 1 . . 1 . 1 . 1 . . . . . . 1 . . . . 1 . 2 1 . . . . . Mask 15 | . . . . . . . 1 . . . . 3 . 1 . 1 . . . . . . . . . . . 4 . 4 1 . . . . . Tunnel 4 | . . . . . . . . . . 4 . . . . . . . . . . . . . . . . . . . . . . . . . . Scanalyzers . | . . . . . . . . . . . . . . . . . . . . . . . . . . . . . . . . . . . . . Garrison Access 4 | . . . . . . . 3 . . . . . . 1 . . . . . . . . . . . . . . . . . . . . . . Broadcast 1 | . . . . . . . 1 . . . . . . . . . . . . . . . . . . . . . . . . . . . . . Reprogram 2 | . . . . . . . 1 . . . . . . 1 . . . . . . . . . . . . . . . . . . . . . . Watchers 1 | . . . . . . . 1 . . . . . . . . . . . . . . . . . . . . . . . . . . . . . Data Cores Recovered 3 | . . . . . . . . . . . . . . . . . . . . . 1 . 1 . . . . . . . . . . . 1 . Used 2 | . . . . . . . . . . . . . . . . . . . . . 1 . 1 . . . . . . . . . . . . . Hacking Detections 149 | . 6 . 5 . . . 10 2 8 6 . 14 . 8 2 9 . . . . 10 . 16 3 . . 7 12 . 14 10 1 . 1 3 2 Full Trace Events 14 | . . . 1 . . . . . . . . . . 1 . 3 . . . . 1 . 2 . . . . 2 . 1 1 1 . 1 . . Feedback Events . | . . . . . . . . . . . . . . . . . . . . . . . . . . . . . . . . . . . . . Feedback Blocked . | . . . . . . . . . . . . . . . . . . . . . . . . . . . . . . . . . . . . . Robot Schematics Acquired 55 | . 1 . . . . . . . 1 . . . . 1 . . . . . . . . . . . . . . . . 52 . . . . . Robots Built 3 | . . . . . . . . . . . . . . . . . . . . . . . 3 . . . . . . . . . . . . . Authchips . | . . . . . . . . . . . . . . . . . . . . . . . . . . . . . . . . . . . . . Time 44 | . . . . . . . . . . . . . . . . . . . . . . . 44 . . . . . . . . . . . . . Total Robot Build Rating 12 | . . . . . . . . . . . . . . . . . . . . . . . 12 . . . . . . . . . . . . . Part Schematics Acquired 18 | . . . 1 . . . 3 . 1 1 1 3 . . 1 . . . . . 1 . 2 . . . 1 . . . 3 . . . . . Parts Built 25 | . . . . . . . . . . . . 5 . 3 . 2 . . . . 1 . 5 . . . . 2 . 2 3 1 . 1 . . Authchips 10 | . . . . . . . . . . . . 4 . . . 1 . . . . 1 . 2 . . . . . . 1 1 . . . . . Time 1347 | . . . . . . . . . . . . 276 . 174 . 114 . . . . 76 . 190 . . . . 114 . 112 203 38 . 50 . . Total Part Build Rating 122 | . . . . . . . . . . . . 21 . 17 . 10 . . . . 5 . 27 . . . . 10 . 8 14 5 . 5 . . Part Studies Acquired 13 | . . . 1 . . . 1 . . . . 3 . . . . . . . . 1 . 1 . . . . 4 . 1 1 . . . . . Parts Repaired 23 | . . . . . . . 6 . . . . 3 . 1 . 1 . . . . . . 3 . . . . 5 . . 4 . . . . . Time 1050 | . . . . . . . 326 . . . . 64 . 22 . 62 . . . . . . 105 . . . . 340 . . 131 . . . . . Parts Recycled . | . . . . . . . . . . . . . . . . . . . . . . . . . . . . . . . . . . . . . Recycled Matter . | . . . . . . . . . . . . . . . . . . . . . . . . . . . . . . . . . . . . . Retrieved Matter . | . . . . . . . . . . . . . . . . . . . . . . . . . . . . . . . . . . . . . Retrieved Components 60 | . . . . . . . 10 . 2 3 . 3 . 3 . 7 . . . . . . . . . . . 22 . 7 3 . . . . . Parts Scanalyzed 11 | . . . 2 . . . 2 . . . . 3 . . . 1 . . . . 1 . . . . . . . . 1 1 . . . . . Part Schematics Acquired 9 | . . . 1 . . . 3 . . . . 3 . . . . . . . . 1 . . . . . . . . . 1 . . . . . Parts Damaged 2 | . . . . . . . 1 . . . . . . . . . . . . . . . . . . . . . . 1 . . . . . . Bothacking | -11 -10 -10 -9 -9 -9 -8 -8 -8 -8 -8 -8 -6 -6 -6 -6 -6 -6 -6 -6 -5 -5 -5 -5 -5 -5 -5 -5 -4 -4 -4 -3 -3 -3 -2 -1 -1 ------------ Run | Yrd Mat Min Mat Min Exi Min Mat Gar Sto Rec Scr Fac Was Fac Gar Fac Low Low Zio Pro Fac Was Fac Ext Cet Arc Hub Fac Was Fac Res Arm Lab Res Acc Com Used RIF Installer 1 | . . . . . . . . . . . . . . . 1 . . . . . . . . . . . . . . . . . . . . . Robots Hacked 84 | . . . . . . . . . . . . 5 . 2 . . . . . . 1 . 16 5 . . . 1 4 2 8 9 . 18 9 4 Non-combat 12 | . . . . . . . . . . . . 5 . 1 . . . . . . . . 1 1 . . . 1 . . 1 . . . 2 . Combat 72 | . . . . . . . . . . . . . . 1 . . . . . . 1 . 15 4 . . . . 4 2 7 9 . 18 7 4 Robot Hacks Applied 21 | . . . . . . . . . . . . 5 . 2 . . . . . . . . 1 2 . . . 1 4 . 2 1 . . 3 . parse_system 8 | . . . . . . . . . . . . 1 . 2 . . . . . . . . . 2 . . . . . . 2 1 . . . . find_chute 2 | . . . . . . . . . . . . 1 . . . . . . . . . . . . . . . 1 . . . . . . . . find_recycling 1 | . . . . . . . . . . . . 1 . . . . . . . . . . . . . . . . . . . . . . . . find_station 1 | . . . . . . . . . . . . 1 . . . . . . . . . . . . . . . . . . . . . . . . check_alert 1 | . . . . . . . . . . . . 1 . . . . . . . . . . . . . . . . . . . . . . . . purge_threat 1 | . . . . . . . . . . . . . . . . . . . . . . . . . . . . . . . . . . . 1 . block_reporting 1 | . . . . . . . . . . . . . . . . . . . . . . . . . . . . . . . . . . . 1 . ignore_targets 4 | . . . . . . . . . . . . . . . . . . . . . . . . . . . . . 4 . . . . . . . formatsys_low 2 | . . . . . . . . . . . . . . . . . . . . . . . 1 . . . . . . . . . . . 1 . Relay Couplers Released 32 | . . . . . . . . 3 . . . . . . 10 . . . . . . . 1 . . . 2 7 . 2 1 . . 3 3 . Machine Destruction 28 | . . . . . . . . 3 . . . . . . 10 . . . . . . . 1 . . . 2 3 . 2 1 . . 3 3 . Programmers 4 | . . . . . . . . . . . . . . . . . . . . . . . . . . . . 4 . . . . . . . . Attached 6 | . . . . . . . . . . . . . . . 1 . . . . . . . 1 . . . 1 1 1 . . . . . 1 . Fabnet Peak Effective % 9 | . . . . . . . . . . . . . . . . . . . . 6 6 6 6 6 6 6 6 2 2 2 9 9 9 9 2 2 Autooverrided 65 | . . . . . . . . . . . . . . . . . . . . . 1 . 15 3 . . . . . 2 7 8 . 18 7 4 Robots Rewired 19 | . . . . . . . . . . . . 2 . . . . . . . . 1 . . 7 . . . . . . . 8 . 1 . . Allies Hacked 20 | . . . . . . . . . . . . . . 1 . . . . . . . . 7 . . . . 2 . . 5 1 . 2 2 . Hacks Repelled 3 | . . . . . . . . . . . . 1 . 1 . . . . . . . . . . . . . . . . . . . . 1 . Allies | -11 -10 -10 -9 -9 -9 -8 -8 -8 -8 -8 -8 -6 -6 -6 -6 -6 -6 -6 -6 -5 -5 -5 -5 -5 -5 -5 -5 -4 -4 -4 -3 -3 -3 -2 -1 -1 -------- Run | Yrd Mat Min Mat Min Exi Min Mat Gar Sto Rec Scr Fac Was Fac Gar Fac Low Low Zio Pro Fac Was Fac Ext Cet Arc Hub Fac Was Fac Res Arm Lab Res Acc Com Total Allies 403 | . . 2 . 3 . . . . 2 . . 9 22 42 2 14 . . . . 17 20 79 22 . . . 42 . 27 26 16 . 33 16 9 Largest Group 56 | . . 2 . 3 3 3 . . 2 . . 7 26 56 37 38 8 3 2 2 18 35 52 24 . . . 12 . 14 12 5 . 7 4 4 Highest-Rated Group 955 | . . 42 . 40 40 40 . . 62 . . 127 807 914 526 536 78 26 18 18 226 912 955 492 . . . 227 . 138 185 304 . 232 112 82 Highest-Rated Ally 159 | . . 31 . 16 16 16 . . 31 . . 41 50 50 46 46 12 10 10 10 49 50 54 159 . . . 47 . 47 64 82 . 82 82 82 Initial Warlord ECA Mod 1 | . . . . . . . . . 1 1 1 . . . . . . . . . . . . . . . . . . . . . . . . . Total Orders 98 | . . . . . . . . . . . . . . . . . . . . . . . 12 1 . . . . . . . 10 . 55 19 1 STAY 9 | . . . . . . . . . . . . . . . . . . . . . . . 1 1 . . . . . . . 1 . 5 1 . FOLLOW 6 | . . . . . . . . . . . . . . . . . . . . . . . . . . . . . . . . 1 . 2 3 . AID 5 | . . . . . . . . . . . . . . . . . . . . . . . 4 . . . . . . . . . . . 1 . EXPLORE 78 | . . . . . . . . . . . . . . . . . . . . . . . 7 . . . . . . . . 8 . 48 14 1 Ally Attacks 4912 | . . 12 . . . 11 . . 26 . 27 90 . 481 143 561 19 8 4 8 24 . 999 249 . . . 377 . 323 185 208 . 426 580 151 Total Damage 90093 | . . 167 . . . 117 . . 291 . 1450 2042 . 7388 2049 7542 294 113 78 106 356 . 14370 4261 . . . 4196 . 3517 2208 5788 . 10918 18802 4040 Kills 791 | . . 4 . . . 3 . . 7 . 8 17 . 58 35 82 5 1 . 2 5 . 163 38 . . . 62 . 45 28 29 . 64 101 34 Allies Corrupted 39 | . . . . . . . . . . . . . . 3 . 8 1 . . . . . 6 . . . . . . 4 5 4 . 2 3 3 Allies Melted 7 | . . . . . . . . . . . . . . . 1 1 . . . . . . 2 1 . . . . . 2 . . . . . . Turrets Deployed 3 | . . . . . . . . . . . 3 . . . . . . . . . . . . . . . . . . . . . . . . . Intel | -11 -10 -10 -9 -9 -9 -8 -8 -8 -8 -8 -8 -6 -6 -6 -6 -6 -6 -6 -6 -5 -5 -5 -5 -5 -5 -5 -5 -4 -4 -4 -3 -3 -3 -2 -1 -1 ------- Run | Yrd Mat Min Mat Min Exi Min Mat Gar Sto Rec Scr Fac Was Fac Gar Fac Low Low Zio Pro Fac Was Fac Ext Cet Arc Hub Fac Was Fac Res Arm Lab Res Acc Com Active Infowar (turns) 22325 | . . 99 434 280 158 272 1363 . . . . 1112 185 1131 428 833 271 183 349 293 426 1010 757 37 . . . 1208 7 1069 1432 2326 956 1944 2833 929 Optics 11383 | . . . . . . . . . . . . . . 270 428 . . . . . . . . . . . . 508 7 . 1182 2326 956 1944 2833 929 Sensors 8460 | . . 2 194 . . . . . . . . 228 185 1131 361 833 271 183 349 292 426 1010 757 . . . . 1074 . 1069 . . . 95 . . Structural 577 | . . . . . . . 577 . . . . . . . . . . . . . . . . . . . . . . . . . . . . . T.N.C. 4178 | . . 97 434 280 158 272 786 . . . . 1112 185 854 . . . . . . . . . . . . . . . . . . . . . . Machine Analysis 1123 | . . . . . . . . . . . . . . . . . . . . . . . . . . . . . . 475 648 . . . . . Triangulation 2441 | . . . . . . . . . . . . . . . . . . . . . . . . . . . . . . 55 430 398 81 1477 . . Jamming 559 | . . . . . . . . . . . . . . . . . . . . . . . . . . . . . . . . . . . 559 . ECM 1 | . . . . . . . . . . . . . . . . . . . . 1 . . . . . . . . . . . . . . . . ID Mask 37 | . . . . . . . . . . . . . . . . . . . . . . . . 37 . . . . . . . . . . . . Robot Analysis Total 101 | . 1 . . . . . . . . 1 . . . . . . . . . . . . . . . . . 1 . . 98 . . . . . Derelict Logs Recovered 5 | . . 1 . 1 . . . . . . . . . . . . 2 1 . . . . . . . . . . . . . . . . . . Drone Launches 16 | . . . . . . . . . . . 2 . . . . . . . . . . . 6 . . . . . . . . . . 8 . . Drone Recoveries 11 | . . . . . . . . . . . . . . . . . . . . . . . 4 . . . . . . . . . . 7 . . Exploration | -11 -10 -10 -9 -9 -9 -8 -8 -8 -8 -8 -8 -6 -6 -6 -6 -6 -6 -6 -6 -5 -5 -5 -5 -5 -5 -5 -5 -4 -4 -4 -3 -3 -3 -2 -1 -1 ------------- Run | Yrd Mat Min Mat Min Exi Min Mat Gar Sto Rec Scr Fac Was Fac Gar Fac Low Low Zio Pro Fac Was Fac Ext Cet Arc Hub Fac Was Fac Res Arm Lab Res Acc Com Turns Passed 31295 | 62 837 202 434 280 158 272 1497 54 350 376 1258 1339 185 1131 751 931 271 183 349 400 471 1010 2026 1232 85 1596 102 1631 79 1157 1596 2326 956 1944 2833 931 Spaces Moved 37704 | 50 807 501 751 343 270 481 1417 127 625 671 1580 3028 312 3135 1124 1751 392 366 402 566 1090 315 2982 939 80 109 255 3269 119 1846 3026 1606 306 1050 1724 289 Core 884 | 50 191 . 12 . . . 15 . . . . . . . . 19 . . . . . . . . 5 56 4 36 119 332 8 . . . . 37 Treads . | . . . . . . . . . . . . . . . . . . . . . . . . . . . . . . . . . . . . . Legs 4146 | . . . . . . . . . . . . . . . . . . . . . . . . . . . . . . . . 814 306 1050 1724 252 Wheels . | . . . . . . . . . . . . . . . . . . . . . . . . . . . . . . . . . . . . . Hover 282 | . . . . . . . . . . . . . . . . . . . . . . . . . . . . . . 282 . . . . . . Flight 32392 | . 616 501 739 343 270 481 1402 127 625 671 1580 3028 312 3135 1124 1732 392 366 402 566 1090 315 2982 939 75 53 251 3233 . 1232 3018 792 . . . . Fastest Speed 6 | 50 37 37 32 34 34 34 26 14 14 26 14 14 26 26 26 26 26 29 14 26 23 29 17 16 6 6 7 19 50 32 25 28 130 121 115 50 Average Speed 43 | 103 65 37 35 34 34 34 30 25 25 26 28 25 26 26 26 28 27 29 27 28 29 49 28 28 30 419 21 29 50 41 30 108 145 132 122 149 Slowest Speed 800 | 150 200 37 120 35 34 34 115 26 26 26 66 26 26 29 26 250 29 29 29 29 91 94 91 30 100 800 100 400 50 170 107 202 195 210 186 470 Overloaded Moves 312 | . . . . . . . . 1 5 . 102 1 . . . . . . 5 . 3 . 40 68 22 8 5 26 . 18 8 . . . . . Propulsion Burnouts . | . . . . . . . . . . . . . . . . . . . . . . . . . . . . . . . . . . . . . Robots Hopped 151 | . 4 6 14 . . . 7 . 4 . 8 10 . 7 4 5 . 1 . . 3 . 14 14 1 . 4 20 . 4 21 . . . . . Potential Cave-ins . | . . . . . . . . . . . . . . . . . . . . . . . . . . . . . . . . . . . . . Cave-ins Triggered 3 | . . . . . . . . . . . . . . . . . . . . . . . . . . . . . . . . . . . . 3 Exploration Rate (%) 59 | 4 80 92 68 77 69 88 64 37 72 93 57 49 93 27 64 27 55 49 15 74 19 88 56 72 49 57 41 55 86 43 47 71 94 72 70 14 Regions Visited 36 Branch Regions 18 Pre-discovered Areas 14 | . . . . 2 1 . 3 . . 7 . . . . . . . . . . . . . . . . . . . 1 . . . . . . Known Exits Taken 16 | . . . 1 1 . . 1 . 1 1 1 . . 1 . 1 1 . . 1 . . 1 . . . 1 . . 1 1 . 1 1 . . Unknown Exits Taken 12 | 1 1 1 . . 1 1 . . . . . . . . . . . 1 1 . . . . 1 1 1 . . . . . 1 . . 1 . Scrap Searched 13 | . . 1 . 1 . 1 . . . . 3 . . . . . 2 2 . 3 . . . . . . . . . . . . . . . . Spaces Dug 613 | . . . 18 25 . . 33 . 14 1 1 8 . 12 22 24 4 1 . 1 . . 11 5 . . 149 108 . 4 42 14 . 36 77 3 Terrain Destroyed 1666 | 4 . . 18 35 . . 59 . 14 1 1 8 . 12 22 24 4 1 . 1 . . 11 23 . . 306 189 . 130 43 53 . 399 246 62 Melee 172 | . . . 1 . . . 12 . 7 1 1 8 . 12 22 24 4 1 . 1 . . 11 5 . . 4 11 . 4 40 3 . . . . Projectile 347 | . . . . . . . 1 . . . . . . . . . . . . . . . . . . . . 3 . . 2 41 . 165 103 32 AOE 1147 | 4 . . 17 35 . . 46 . 7 . . . . . . . . . . . . . . 18 . . 302 175 . 126 1 9 . 234 143 30 Terrain Rammed . | . . . . . . . . . . . . . . . . . . . . . . . . . . . . . . . . . . . . . Walls Destroyed . | . . . . . . . . . . . . . . . . . . . . . . . . . . . . . . . . . . . . . Machines Disabled . | . . . . . . . . . . . . . . . . . . . . . . . . . . . . . . . . . . . . . Actions | -11 -10 -10 -9 -9 -9 -8 -8 -8 -8 -8 -8 -6 -6 -6 -6 -6 -6 -6 -6 -5 -5 -5 -5 -5 -5 -5 -5 -4 -4 -4 -3 -3 -3 -2 -1 -1 --------- Run | Yrd Mat Min Mat Min Exi Min Mat Gar Sto Rec Scr Fac Was Fac Gar Fac Low Low Zio Pro Fac Was Fac Ext Cet Arc Hub Fac Was Fac Res Arm Lab Res Acc Com Total 50591 | 57 976 509 825 497 337 581 2331 137 776 864 2373 3497 415 3399 1516 2091 546 436 627 789 1229 1166 4058 1787 140 1243 283 3769 143 2195 3518 2158 828 1542 2286 667 Wait 9732 | 1 60 12 3 135 58 96 756 . 136 188 778 358 95 175 340 274 146 69 212 209 118 838 935 734 47 1123 12 279 6 164 255 239 422 121 161 177 Move 37390 | 49 798 488 722 342 269 480 1402 126 616 670 1564 3008 311 3122 1116 1740 391 363 401 565 1084 314 2955 916 77 108 248 3230 118 1839 2988 1605 305 1049 1722 289 Hop 132 | . 4 6 14 . . . 7 . 4 . 7 10 . 5 3 5 . 1 . . 3 . 12 9 1 . 3 19 . 3 16 . . . . . Pick Up 346 | 1 6 1 4 4 4 . 12 . . . 4 8 . 14 1 5 1 . . . 1 . 26 7 1 4 1 26 . 16 22 42 22 48 53 12 Fast Attach 308 | 4 8 1 7 1 . 1 29 . 2 . 6 16 4 18 1 4 . 1 2 4 5 6 29 3 . 2 2 25 1 27 38 32 6 5 14 4 Attach 233 | . 4 . 7 5 1 . 10 . . . . 4 . . . 3 1 . 1 . 1 . 4 8 6 . 2 20 6 12 3 11 10 42 45 27 Detach 81 | . 1 . 2 2 . . 3 . . 1 1 . 1 . . 1 . . 1 . 1 . . 4 4 . 1 10 . 2 4 3 1 15 14 9 Swap 185 | . 1 1 3 1 1 . 9 . 1 . . 7 . 6 8 6 . . . . 3 . 13 15 3 1 4 11 . 3 12 9 3 28 24 12 Drop 516 | 1 3 . 9 1 4 . 22 . 1 1 10 17 4 28 6 9 2 . 2 3 6 7 29 6 1 3 2 26 7 33 43 72 27 47 65 19 Fire 730 | 1 91 . 14 4 . . 6 . 1 . . . . 1 . . . . . . . . 2 11 . . . 16 . 24 13 46 32 187 185 96 Melee 692 | . . . 40 2 . 4 75 5 15 4 3 42 . 30 37 44 5 2 8 8 6 1 50 57 . 2 8 91 5 12 109 27 . . . . Ram 4 | . . . . . . . . . . . . . . . . . . . . . . . . . . . . . . . . . . . . 4 Kick 1 | . . . . . . . . . . . . . . . . . . . . . . . . . . . . . . . . . . . 1 . Crush . | . . . . . . . . . . . . . . . . . . . . . . . . . . . . . . . . . . . . . Escape Stasis 160 | . . . . . . . . 6 . . . 13 . . 4 . . . . . . . . 15 . . . 15 . 60 15 13 . . 1 18 Rewire 76 | . . . . . . . . . . . . 14 . . . . . . . . 1 . . . . . . 1 . . . 59 . . 1 . Trap 5 | . . . . . . . . . . . . . . . . . . . . . . . 3 2 . . . . . . . . . . . . Miscellaneous . | . . . . . . . . . . . . . . . . . . . . . . . . . . . . . . . . . . . . . Route ------- -11/Scrapyard -10/Materials (discovered 4 exits: *Mat x2 / [*Min] / [*Sub]) -10/Mines -9/Materials (discovered 3 exits: *Mat / *Min x2) -9/Mines (discovered 3 exits: *Mat x2 / *Exi) -9/Exiles (discovered 2 exits: [*Min x2]) -8/Mines (discovered 2 exits: *Mat x2) -8/Materials (discovered 4 exits: [*Fac x2] / *Sto / Gar) -8/Garrison (discovered 3 exits: *Sto x3) -8/Storage -8/Recycling (discovered 2 exits: *Fac / *Scr) -8/Scraptown (discovered 2 exits: *Fac x2) -6/Factory (discovered 5 exits: *Fac x3 / *Low x2) -6/Waste -6/Factory (discovered 2 exits: *Fac / Gar) -6/Garrison (discovered 3 exits: *Fac x3) -6/Factory (discovered 2 exits: *Low x2) -6/Lower Caves -6/Lower Caves -6/Zion -5/Proximity Caves -5/Factory -5/Waste -5/Factory (discovered 5 exits: *Fac / Upp x2 / *Ext x2) -5/Extension (discovered 2 exits: *Fac / [*Cet]) -5/Cetus -5/Archives -5/Hub_04(d) -4/Factory (discovered 6 exits: Res x4 / *Upp x2) -4/Waste -4/Factory (discovered 5 exits: *Res x3 / *Upp x2) -3/Research (discovered 5 exits: *Res x2 / *Arm / *Qua x2) -3/Armory (discovered 3 exits: *Res x2 / [*Lab]) -3/Lab -2/Research (discovered 3 exits: *Acc x2 / [*Tes]) -1/Access (discovered 2 exits: *Sur / *Com) -1/Command History --------- Turn | Location | Event 3 | -11/Scrapyard | Discovered new exit (range 15) 63 | -11/Scrapyard | Entered Materials 313 | -10/Materials | Build established: Mutant 434 | -10/Materials | Discovered new exit (range 15) 486 | -10/Materials | Discovered new exit (range 16) 580 | -10/Materials | Core integrity fell below 50% 770 | -10/Materials | Discovered new exit (range 9) 839 | -10/Materials | Discovered new exit (range 15) 900 | -10/Materials | Entered Mines 907 | -10/Mines | Discovered new exit (range 8) 911 | -10/Mines | Met a Derelict bent on vengeance 1002 | -10/Mines | Found a damaged Exp. Sensor Array with a note attached 1003 | -10/Mines | Found Prototype Device 1003 | -10/Mines | Identified Exp. Sensor Array 1011 | -10/Mines | Learned Materials garrison access intel 1102 | -10/Mines | Entered Materials 1102 | -9/Materials | Evolved 2 slots: Utility x2 1354 | -9/Materials | Discovered new exit (range 15) 1372 | -9/Materials | Identified exit to Mines 1463 | -9/Materials | Discovered new exit (range 3) 1496 | -9/Materials | Discovered exit to Mines (range 16) 1499 | -9/Materials | Core integrity fell below 50% 1536 | -9/Materials | Entered Mines 1549 | -9/Mines | Lost 5 parts (4n1u) 1651 | -9/Mines | Discovered new exit (range 7) 1673 | -9/Mines | Learned location of Storage (-8) 1686 | -9/Mines | Core integrity fell below 20% 1689 | -9/Mines | Discovered new exit (range 16) 1702 | -9/Mines | Learned location of Zion (-6) 1722 | -9/Mines | Assisted by bots powering up and referring to "LRC-V3" 1733 | -9/Mines | Deemed a non-threat by the Exiles lab entrance 1733 | -9/Mines | Discovered new exit (range 5) 1783 | -9/Mines | Identified exit to Exiles 1816 | -9/Mines | Entered Exiles 1816 | -9/Exiles | Accompanied by 3 allies 1822 | -9/Exiles | Discovered new exit (range 15) 1826 | -9/Exiles | Met 8R-AWN 1830 | -9/Exiles | Met EX-HEX 1843 | -9/Exiles | Met EX-DEC 1857 | -9/Exiles | Met EX-BIN 1861 | -9/Exiles | Aligned with FarCom system 1861 | -9/Exiles | Given EX-Vault access code 1869 | -9/Exiles | Opened EX-Vault 1877 | -9/Exiles | Found Deploy-a-Sentry 1878 | -9/Exiles | Found Deploy-a-Sentry 1880 | -9/Exiles | Found Deploy-a-Sentry 1888 | -9/Exiles | Warned to stay clear of 0b10 Research branches 1949 | -9/Exiles | Discovered new exit (range 14) 1974 | -9/Exiles | Left Exiles lab with Deploy-a-Sentry 1974 | -9/Exiles | Entered Mines 1974 | -8/Mines | Accompanied by 3 allies 2112 | -8/Mines | Discovered new exit (range 12) 2139 | -8/Mines | Discovered new exit (range 5) 2189 | -8/Mines | Lost 3 allies 2246 | -8/Mines | Entered Materials 2246 | -8/Materials | Evolved 2 slots: Propulsion x2 2247 | -8/Materials | Loaded intel: 1 garrison access location 2766 | -8/Materials | Build established: Hacker-Mutant 3045 | -8/Materials | Core integrity fell below 50% 3069 | -8/Materials | Core integrity fell below 20% 3106 | -8/Materials | Lost 6 parts (2n1u3w) 3170 | -8/Materials | Identified exit to Storage 3223 | -8/Materials | Repaired Surge Thruster 3262 | -8/Materials | Repaired Surge Thruster 3301 | -8/Materials | Repaired Surge Thruster 3323 | -8/Materials | Build established: Scavenger-Sprinter 3340 | -8/Materials | Repaired Surge Thruster 3380 | -8/Materials | Repaired Surge Thruster 3391 | -8/Materials | Identified exit to Garrison 3441 | -8/Materials | Central database locked down 3464 | -8/Materials | Discovered new exit (range 15) 3540 | -8/Materials | Learned location of Extension (-5) 3565 | -8/Materials | Learned location of 1 exit from Lower Caves 3582 | -8/Materials | Learned location of 2 exits from Factory 3594 | -8/Materials | Learned location of Lower Caves (-7) 3616 | -8/Materials | Learned location of 2 exits from Factory 3626 | -8/Materials | Discovered new exit (range 15) 3679 | -8/Materials | Repaired Broken Exp. Sensor Array? 3743 | -8/Materials | Entered Garrison 3747 | -8/Garrison | Triggered checkpoint 3761 | -8/Garrison | Triggered checkpoint 3763 | -8/Garrison | Discovered exit to Storage (range 66) 3763 | -8/Garrison | Discovered exit to Storage (range 43) 3763 | -8/Garrison | Discovered exit to Storage (range 49) 3783 | -8/Garrison | Garrison Relay disabled 3797 | -8/Garrison | Entered Storage 3807 | -8/Storage | Met a pair of Derelict thieves 3985 | -8/Storage | Identified exit to Recycling 4018 | -8/Storage | Build established: Hacker-Sprinter 4067 | -8/Storage | Used back door to open Recycling access 4147 | -8/Storage | Entered Recycling 4212 | -8/Recycling | Discovered new exit (range 5) 4237 | -8/Recycling | Scanned before Scraplab entrance 4332 | -8/Recycling | Entered Scraplab 4398 | -8/Recycling | Learned location of Lower Caves (-6) 4417 | -8/Recycling | Learned Factory emergency access door positions 4430 | -8/Recycling | Identified exit to Scraptown 4462 | -8/Recycling | Learned 2 Storage zone layouts 4490 | -8/Recycling | Learned Storage emergency access door positions 4523 | -8/Recycling | Entered Scraptown 4523 | -8/Scraptown | System corruption cleaned by C-Scrubber 4524 | -8/Scraptown | Identified exit to Factory 4563 | -8/Scraptown | Turned away by UFD registrar 4567 | -8/Scraptown | Visited The Evicted 4569 | -8/Scraptown | Visited Junk Repository 4577 | -8/Scraptown | Visited Spacefarers 4583 | -8/Scraptown | Visited Symbiants 4587 | -8/Scraptown | Visited Comm Corps 4598 | -8/Scraptown | Visited Assassins FH 4601 | -8/Scraptown | Visited IN-MT5's Study 4639 | -8/Scraptown | Heard Great Nut preacher, LISTEN AND RECITE! 4719 | -8/Scraptown | DAS Turret deployed 4730 | -8/Scraptown | DAS Turret deployed 4743 | -8/Scraptown | DAS Turret deployed 5239 | -8/Scraptown | Build established: Scavenger-Mutant 5751 | -8/Scraptown | Attacked by Scraptown defenders 5781 | -8/Scraptown | Entered Factory 5781 | -6/Factory | Evolved 4 slots: Utility x4 5782 | -6/Factory | Identified exit to Lower Caves 5783 | -6/Factory | Identified exit to Factory 6079 | -6/Factory | Build established: Hacker-Sprinter 6183 | -6/Factory | Fabricated IN-MT5's Pitchfork "Insurrection" (x1) 6562 | -6/Factory | Reprogrammed and armed K-01 Serf 6562 | -6/Factory | Reprogrammed and armed K-01 Serf 6564 | -6/Factory | Reprogrammed and armed K-01 Serf 6625 | -6/Factory | Reprogrammed and armed K-01 Serf 6723 | -6/Factory | Repaired Broken Surge Thruster+ 6724 | -6/Factory | Fabricated IN-MT5's Pitchfork "Insurrection"? 6775 | -6/Factory | Found Prototype Processor 6775 | -6/Factory | Identified Exp. Targeting Computer 6823 | -6/Factory | Fabricated Surge Thruster (x2) 6891 | -6/Factory | Fabricated IN-MT5's Pitchfork "Insurrection" (x1) 6927 | -6/Factory | Spotted B-75 Beast 6940 | -6/Factory | Allies destroyed B-75 Beast 7032 | -6/Factory | Repaired Surge Thruster+ 7052 | -6/Factory | Repaired Surge Thruster+ 7120 | -6/Factory | Sucked down chute 7120 | -6/Factory | Entered Waste 7120 | -6/Waste | Met up with 2 allies sucked down the chute earlier 7121 | -6/Waste | Joined by Warlord forces that had cleared the area 7170 | -6/Waste | 4 allies followed down the chute 7180 | -6/Waste | Found Broken Gamma Bomb Array 7243 | -6/Waste | Discovered new exit (range 13) 7305 | -6/Waste | Entered Factory 7305 | -6/Factory | Accompanied by 26 allies 7330 | -6/Factory | Repaired Gamma Bomb Array 7331 | -6/Factory | Build established: Hacker-Scout 7337 | -6/Factory | Reprogrammed and armed K-01 Serf 7337 | -6/Factory | Discovered exit to Factory (range 16) 7340 | -6/Factory | Identified exit to DSF 7440 | -6/Factory | Reprogrammed and armed K-01 Serf 7446 | -6/Factory | Fabricated Exp. ECM Suite (x1) 7456 | -6/Factory | Found Prototype Launcher 7456 | -6/Factory | Identified Scatter Rocket Array 7486 | -6/Factory | Reprogrammed and armed K-01 Serf 7487 | -6/Factory | Reprogrammed and armed K-01 Serf 7488 | -6/Factory | Reprogrammed and armed K-01 Serf 7493 | -6/Factory | Reprogrammed and armed K-01 Serf 7515 | -6/Factory | Reprogrammed and armed K-01 Serf 7518 | -6/Factory | Fabricated Shock Maul (x1) 7560 | -6/Factory | Reprogrammed and armed K-01 Serf 7568 | -6/Factory | Reprogrammed and armed K-01 Serf 7571 | -6/Factory | Reprogrammed and armed K-01 Serf 7573 | -6/Factory | Reprogrammed and armed K-01 Serf 7588 | -6/Factory | Reprogrammed and armed K-01 Serf 7589 | -6/Factory | Reprogrammed and armed K-01 Serf 7606 | -6/Factory | Fabricated Imp. Hacking Suite (x1) 7625 | -6/Factory | Reprogrammed and armed K-01 Serf 7654 | -6/Factory | Reprogrammed and armed K-01 Serf 7655 | -6/Factory | Reprogrammed and armed K-01 Serf 7682 | -6/Factory | Reprogrammed and armed K-01 Serf 7704 | -6/Factory | Reprogrammed and armed K-01 Serf 7718 | -6/Factory | Reprogrammed and armed K-01 Serf 7734 | -6/Factory | Reprogrammed and armed K-01 Serf 7769 | -6/Factory | Reprogrammed and armed K-01 Serf 7798 | -6/Factory | Unchained authorized (DW-4LL) 7870 | -6/Factory | Reprogrammed and armed K-01 Serf 7888 | -6/Factory | DW-4LL burst out of a wall 7895 | -6/Factory | Attached CPS modules to DW-4LL. 7911 | -6/Factory | Allies destroyed DW-4LL 7919 | -6/Factory | Found DW-4LL's Megashotty 7927 | -6/Factory | Lost 3 allies 7928 | -6/Factory | Reprogrammed and armed K-01 Serf 7945 | -6/Factory | Found Exp. Weapon Cycler 7946 | -6/Factory | Found DW-4LL's Griptreads 7951 | -6/Factory | Reprogrammed and armed K-01 Serf 7964 | -6/Factory | Found Exp. Armor Integrity Analyzer 7966 | -6/Factory | Found DW-4LL's Griptreads 7979 | -6/Factory | Lost 3 allies 8005 | -6/Factory | First assault squad dispatched 8022 | -6/Factory | Reprogrammed and armed K-01 Serf 8055 | -6/Factory | Reprogrammed and armed K-01 Serf 8065 | -6/Factory | Reprogrammed and armed K-01 Serf 8065 | -6/Factory | Reprogrammed and armed K-01 Serf 8104 | -6/Factory | Reprogrammed and armed K-01 Serf 8116 | -6/Factory | Cargo convoy interrupted 8149 | -6/Factory | Reprogrammed and armed K-01 Serf 8170 | -6/Factory | Reprogrammed and armed K-01 Serf 8170 | -6/Factory | Reprogrammed and armed K-01 Serf 8182 | -6/Factory | Reprogrammed and armed K-01 Serf 8200 | -6/Factory | Reprogrammed and armed K-01 Serf 8216 | -6/Factory | Reprogrammed and armed K-01 Serf 8223 | -6/Factory | Reprogrammed and armed K-01 Serf 8238 | -6/Factory | Found Prototype Energy Cannon 8238 | -6/Factory | Identified Exp. Thermic Cannon 8251 | -6/Factory | Reprogrammed and armed K-01 Serf 8274 | -6/Factory | Reprogrammed and armed K-01 Serf 8294 | -6/Factory | Reprogrammed and armed K-01 Serf 8328 | -6/Factory | Identified exit to Garrison 8332 | -6/Factory | Reprogrammed and armed K-01 Serf 8334 | -6/Factory | Reprogrammed and armed K-01 Serf 8387 | -6/Factory | Garrison activated, responded to threat 8436 | -6/Factory | Entered Garrison 8436 | -6/Garrison | Accompanied by 37 allies 8464 | -6/Garrison | Garrison Relay disabled 8466 | -6/Garrison | Triggered checkpoint 8523 | -6/Garrison | Triggered checkpoint 8544 | -6/Garrison | Triggered checkpoint 8560 | -6/Garrison | Triggered checkpoint 8572 | -6/Garrison | Triggered checkpoint 8668 | -6/Garrison | Triggered checkpoint 8727 | -6/Garrison | Garrison Relay disabled 8733 | -6/Garrison | Lost 5 allies 8734 | -6/Garrison | Discovered new exit (range 8) 8785 | -6/Garrison | Rescued a captive Derelict 8788 | -6/Garrison | Rescued a captive Derelict 8845 | -6/Garrison | Installed Relay Interface Framework 8846 | -6/Garrison | Lost 3 allies 8887 | -6/Garrison | Discovered new exit (range 46) 8887 | -6/Garrison | Discovered new exit (range 17) 8887 | -6/Garrison | Discovered new exit (range 61) 9052 | -6/Garrison | Triggered checkpoint 9147 | -6/Garrison | Build established: Hacker-Sprinter 9187 | -6/Garrison | Entered Factory 9187 | -6/Factory | Accompanied by 29 allies 9199 | -6/Factory | Reprogrammed and armed K-01 Serf 9214 | -6/Factory | Reprogrammed and armed K-01 Serf 9216 | -6/Factory | Reprogrammed and armed K-01 Serf 9226 | -6/Factory | Reprogrammed and armed K-01 Serf 9228 | -6/Factory | Reprogrammed and armed K-01 Serf 9289 | -6/Factory | Reprogrammed and armed K-01 Serf 9293 | -6/Factory | Repaired Graphene Brace? 9326 | -6/Factory | Reprogrammed and armed K-01 Serf 9361 | -6/Factory | Reprogrammed and armed K-01 Serf 9472 | -6/Factory | Reprogrammed and armed K-01 Serf 9473 | -6/Factory | Fabricated IN-MT5's Pitchfork "Insurrection"? 9537 | -6/Factory | First assault squad dispatched 9543 | -6/Factory | Reprogrammed and armed K-01 Serf 9544 | -6/Factory | Reprogrammed and armed K-01 Serf 9548 | -6/Factory | Build established: Hacker-Scout 9596 | -6/Factory | Reprogrammed and armed K-01 Serf 9610 | -6/Factory | Reprogrammed and armed K-01 Serf 9643 | -6/Factory | Fabricated IN-MT5's Pitchfork "Insurrection"? 9681 | -6/Factory | High security lockdown imminent 9723 | -6/Factory | Spotted B-75 Beast 9735 | -6/Factory | Allies destroyed B-75 Beast 9761 | -6/Factory | High security lockdown engaged 9773 | -6/Factory | Reprogrammed and armed K-01 Serf 9990 | -6/Factory | Lost 4 allies 10118 | -6/Factory | Entered Lower Caves 10118 | -6/Lower Caves | Accompanied by 8 allies 10119 | -6/Lower Caves | Identified exit to Lower Caves 10119 | -6/Lower Caves | Learned Factory stockpile data 10148 | -6/Lower Caves | Lost 9 allies 10260 | -6/Lower Caves | Acquired the password to a Derelict Tinkerer's latest research 10276 | -6/Lower Caves | Found Prototype Special Weapon 10348 | -6/Lower Caves | Lost 6 allies 10389 | -6/Lower Caves | Entered another Lower Caves area 10389 | -6/Lower Caves | Accompanied by 3 allies 10419 | -6/Lower Caves | Build established: Hacker-Sprinter 10425 | -6/Lower Caves | Encountered a Warlord checkpoint 10472 | -6/Lower Caves | Learned 4 Factory zone layouts 10516 | -6/Lower Caves | Attacked by a delusional Derelict stockpiling parts 10554 | -6/Lower Caves | Discovered new exit (range 12) 10572 | -6/Lower Caves | Entered Zion 10572 | -6/Zion | Accompanied by 2 allies 10591 | -6/Zion | Received a visual enhancement algorithm 10592 | -6/Zion | Ran a visual enhancement algorithm 10595 | -6/Zion | Discovered new exit (range 15) 10668 | -6/Zion | System corruption cleaned by Quarantine Array 10675 | -6/Zion | RIF detected upon attempting to enter Zion 10675 | -6/Zion | Attacked by Zionites 10875 | -6/Zion | Destroyed Imprinter 10877 | -6/Zion | Extracted access codes from Imprinter's data core 10881 | -6/Zion | Identified Molecular Deconstructor 10921 | -6/Zion | Entered Proximity Caves 10921 | -5/Proximity Caves | Accompanied by 2 allies 11306 | -5/Proximity Caves | Discovered exit to Factory (range 11) 11321 | -5/Proximity Caves | Attracted the attention of an 0b10 checkpoint 11321 | -5/Proximity Caves | Entered Factory 11321 | -5/Factory | Accompanied by 2 allies 11321 | -5/Factory | Evolved 2 slots: Propulsion x1, Utility x1 11328 | -5/Factory | Reprogrammed and armed K-01 Serf 11382 | -5/Factory | Fabricated IN-MT5's Pitchfork "Insurrection" (x1) 11409 | -5/Factory | Reprogrammed and armed K-01 Serf 11446 | -5/Factory | Reprogrammed and armed K-01 Serf 11510 | -5/Factory | Central database locked down 11531 | -5/Factory | Reprogrammed and armed K-01 Serf 11593 | -5/Factory | Reprogrammed and armed K-01 Serf 11599 | -5/Factory | Reprogrammed and armed K-01 Serf 11602 | -5/Factory | Reprogrammed and armed K-01 Serf 11624 | -5/Factory | Reprogrammed and armed K-01 Serf 11626 | -5/Factory | Reprogrammed and armed K-01 Serf 11627 | -5/Factory | Reprogrammed and armed K-01 Serf 11628 | -5/Factory | Reprogrammed and armed K-01 Serf 11630 | -5/Factory | Discovered new exit (range 15) 11645 | -5/Factory | Reprogrammed and armed K-01 Serf 11661 | -5/Factory | Reprogrammed and armed K-01 Serf 11666 | -5/Factory | Local machine network offline 11671 | -5/Factory | Build established: Hacker-Scout 11752 | -5/Factory | Reprogrammed and armed K-01 Serf 11752 | -5/Factory | Reprogrammed and armed K-01 Serf 11792 | -5/Factory | Sucked down chute 11792 | -5/Factory | Entered Waste 11793 | -5/Waste | Joined by Warlord forces that had cleared the area 12267 | -5/Waste | 19 allies followed down the chute 12481 | -5/Waste | Found Broken Adv. Powered Armor 12556 | -5/Waste | Found Broken Adv. Force Booster 12594 | -5/Waste | Discovered new exit (range 15) 12711 | -5/Waste | Identified exit to Factory 12802 | -5/Waste | Entered Factory 12802 | -5/Factory | Accompanied by 34 allies 12834 | -5/Factory | P-70 Sage assimilated allied F7-30P(s) 12859 | -5/Factory | Reprogrammed and armed K-01 Serf 12862 | -5/Factory | Reprogrammed and armed K-01 Serf 12888 | -5/Factory | Lost 7 allies 12897 | -5/Factory | Reprogrammed and armed K-01 Serf 12966 | -5/Factory | Identified exit to Upper Caves 12966 | -5/Factory | Identified exit to Extension 13051 | -5/Factory | Reprogrammed and armed K-01 Serf 13056 | -5/Factory | Lost 3 allies 13056 | -5/Factory | Reprogrammed and armed K-01 Serf 13063 | -5/Factory | Reprogrammed and armed K-01 Serf 13072 | -5/Factory | Spotted B-75 Beast 13081 | -5/Factory | Allies destroyed B-75 Beast 13143 | -5/Factory | Reprogrammed and armed K-01 Serf 13144 | -5/Factory | Reprogrammed and armed K-01 Serf 13170 | -5/Factory | Reprogrammed and armed K-01 Serf 13170 | -5/Factory | Reprogrammed and armed K-01 Serf 13171 | -5/Factory | Reprogrammed and armed K-01 Serf 13177 | -5/Factory | Reprogrammed and armed K-01 Serf 13178 | -5/Factory | Reprogrammed and armed K-01 Serf 13178 | -5/Factory | Reprogrammed and armed K-01 Serf 13179 | -5/Factory | Reprogrammed and armed K-01 Serf 13180 | -5/Factory | Reprogrammed and armed K-01 Serf 13190 | -5/Factory | Reprogrammed and armed K-01 Serf 13191 | -5/Factory | Reprogrammed and armed K-01 Serf 13202 | -5/Factory | Reprogrammed and armed K-01 Serf 13204 | -5/Factory | Reprogrammed and armed K-01 Serf 13212 | -5/Factory | Reprogrammed and armed K-01 Serf 13213 | -5/Factory | Fabricated IN-MT5's Pitchfork "Insurrection" (x1) 13291 | -5/Factory | Repaired Cld. VTOL Module 13328 | -5/Factory | Repaired Cld. VTOL Module 13334 | -5/Factory | Reprogrammed and armed K-01 Serf 13334 | -5/Factory | Reprogrammed and armed K-01 Serf 13355 | -5/Factory | Reprogrammed and armed K-01 Serf 13401 | -5/Factory | Fabricated Adv. Trap Extractor? 13432 | -5/Factory | Reprogrammed and armed K-01 Serf 13449 | -5/Factory | Reprogrammed and armed K-01 Serf 13485 | -5/Factory | Reprogrammed and armed K-01 Serf 13486 | -5/Factory | Reprogrammed and armed K-01 Serf 13486 | -5/Factory | Reprogrammed and armed K-01 Serf 13489 | -5/Factory | Cargo convoy interrupted 13507 | -5/Factory | Fabricated B-48 Gladiator? 13511 | -5/Factory | P-70 Sage assimilated allied K-01 Serf 13526 | -5/Factory | Reprogrammed and armed K-01 Serf 13530 | -5/Factory | Reprogrammed and armed K-01 Serf 13530 | -5/Factory | Reprogrammed and armed K-01 Serf 13530 | -5/Factory | Reprogrammed and armed K-01 Serf 13539 | -5/Factory | Reprogrammed and armed K-01 Serf 13540 | -5/Factory | Reprogrammed and armed K-01 Serf 13569 | -5/Factory | Reprogrammed and armed K-01 Serf 13594 | -5/Factory | Lost 12 allies 13598 | -5/Factory | Reprogrammed and armed K-01 Serf 13602 | -5/Factory | Reprogrammed and armed K-01 Serf 13635 | -5/Factory | Reprogrammed and armed K-01 Serf 13676 | -5/Factory | Lost 3 allies 13681 | -5/Factory | Reprogrammed and armed K-01 Serf 13682 | -5/Factory | Reprogrammed and armed K-01 Serf 13696 | -5/Factory | Found PL-3XN's Ring of Power 13702 | -5/Factory | First assault squad dispatched 13705 | -5/Factory | Reprogrammed and armed K-01 Serf 13716 | -5/Factory | Fabricated IN-MT5's Pitchfork "Insurrection" (x1) 13731 | -5/Factory | Reprogrammed and armed K-01 Serf 13737 | -5/Factory | Reprogrammed and armed K-01 Serf 13738 | -5/Factory | Reprogrammed and armed K-01 Serf 13756 | -5/Factory | Reprogrammed and armed K-01 Serf 13769 | -5/Factory | Lost 3 allies 13771 | -5/Factory | Reprogrammed and armed K-01 Serf 13775 | -5/Factory | Reprogrammed and armed K-01 Serf 13783 | -5/Factory | Reprogrammed and armed K-01 Serf 13811 | -5/Factory | Reprogrammed and armed K-01 Serf 13849 | -5/Factory | Build established: Hacker-Sprinter 13854 | -5/Factory | Fabricated IN-MT5's Pitchfork "Insurrection"? 13869 | -5/Factory | Garrison activated, responded to threat 13884 | -5/Factory | Reprogrammed and armed K-01 Serf 13894 | -5/Factory | Repaired Cld. VTOL Module? 13931 | -5/Factory | Reprogrammed and armed K-01 Serf 13964 | -5/Factory | Reprogrammed and armed K-01 Serf 13990 | -5/Factory | Reprogrammed and armed K-01 Serf 14002 | -5/Factory | High security lockdown imminent 14046 | -5/Factory | Reprogrammed and armed K-01 Serf 14046 | -5/Factory | Reprogrammed and armed K-01 Serf 14056 | -5/Factory | Reprogrammed and armed K-01 Serf 14069 | -5/Factory | Reprogrammed and armed K-01 Serf 14082 | -5/Factory | High security lockdown engaged 14088 | -5/Factory | Reprogrammed and armed K-01 Serf 14138 | -5/Factory | Local machine network offline 14469 | -5/Factory | P-70 Sage assimilated allied K-01 Serf 14482 | -5/Factory | Reprogrammed and armed K-01 Serf 14501 | -5/Factory | Sterilization system engaged 14501 | -5/Factory | Non-combat units ordered to evacuate 14560 | -5/Factory | Lost 22 allies 14578 | -5/Factory | Discovered new exit (range 15) 14601 | -5/Factory | Combat units ordered to evacuate 14620 | -5/Factory | Reprogrammed and armed K-01 Serf 14801 | -5/Factory | Ambient heat levels rising (+10) 14828 | -5/Factory | Entered Extension 14828 | -5/Extension | Accompanied by 16 allies 14862 | -5/Extension | Rescued a captive Derelict 14864 | -5/Extension | Rescued a captive Derelict 14879 | -5/Extension | Rescued a captive Derelict 14880 | -5/Extension | Rescued a captive Derelict 14891 | -5/Extension | Rescued a captive Derelict 14960 | -5/Extension | Rescued a captive Derelict 14998 | -5/Extension | Rescued a captive Derelict 15018 | -5/Extension | Rescued a captive Derelict 15020 | -5/Extension | Rescued a captive Derelict 15028 | -5/Extension | Unchained authorized (6S-H0T) 15068 | -5/Extension | Exiles provided nearest exit location to -4/Factory 15098 | -5/Extension | Lost 4 allies 15128 | -5/Extension | First assault squad dispatched 15362 | -5/Extension | Lost 9 allies 15614 | -5/Extension | High security lockdown imminent 15647 | -5/Extension | Lost 7 allies 15694 | -5/Extension | High security lockdown engaged 15709 | -5/Extension | Lost 6 allies 15746 | -5/Extension | Allies destroyed 6S-H0T 15747 | -5/Extension | Found ID Mask 15751 | -5/Extension | Rescued a captive Derelict 15756 | -5/Extension | ID Mask engaged 15760 | -5/Extension | Spotted B-75 Beast 15762 | -5/Extension | Spotted B-75 Beast 15793 | -5/Extension | ID Mask no longer valid 15857 | -5/Extension | Energy Cycler disabled 15857 | -5/Extension | Rescued a captive Derelict 15862 | -5/Extension | Rescued a captive Derelict 15869 | -5/Extension | Rescued A7 15877 | -5/Extension | Attached CPS modules to A7. 15884 | -5/Extension | Lost 3 allies 15961 | -5/Extension | Murdered A7 15964 | -5/Extension | Extracted ID and sensor layout for unrecognized location from A7's data core 15969 | -5/Extension | Found Med. Regenerative Plating 16058 | -5/Extension | Discovered new exit (range 6) 16060 | -5/Extension | Entered Cetus 16091 | -5/Cetus | Lost 3 parts (1n2u) 16125 | -5/Cetus | Spotted Cetus Guard 16126 | -5/Cetus | Spotted Cetus Guard 16126 | -5/Cetus | Spotted Cetus Guard 16126 | -5/Cetus | Spotted Cetus Guard 16135 | -5/Cetus | Discovered new exit (range 15) 16145 | -5/Cetus | Entered Archives 16336 | -5/Archives | Build established: Scavenger-Mutant 17736 | -5/Archives | Discovered new exit (range 15) 17741 | -5/Archives | Entered Hub_04(d) 17801 | -5/Hub_04(d) | Spotted B-75 Beast 17817 | -5/Hub_04(d) | Discovered exit to Factory (range 12) 17827 | -5/Hub_04(d) | Network Hub disabled 17837 | -5/Hub_04(d) | Spotted Lightning 17839 | -5/Hub_04(d) | Network Hub disabled 17839 | -5/Hub_04(d) | Spotted Lightning 17843 | -5/Hub_04(d) | Entered Factory 17843 | -4/Factory | Evolved 2 slots: Power x1, Utility x1 17865 | -4/Factory | Identified exit to DSF 17871 | -4/Factory | Reprogrammed and armed K-01 Serf 17903 | -4/Factory | Reprogrammed and armed K-01 Serf 18025 | -4/Factory | Discovered new exit (range 4) 18026 | -4/Factory | Identified exit to Upper Caves 18096 | -4/Factory | Repaired Nuclear Pulse Array 18137 | -4/Factory | Reprogrammed and armed K-01 Serf 18179 | -4/Factory | Discovered exit to Upper Caves (range 10) 18186 | -4/Factory | Repaired Kinetic Spear? 18225 | -4/Factory | Fabricated IN-MT5's Pitchfork "Insurrection"? 18241 | -4/Factory | Repaired Imp. Surge Thruster? 18304 | -4/Factory | Repaired Thunder Hammer? 18336 | -4/Factory | Reprogrammed and armed K-01 Serf 18358 | -4/Factory | Reprogrammed and armed K-01 Serf 18372 | -4/Factory | Garrison activated, responded to threat 18399 | -4/Factory | Reprogrammed and armed K-01 Serf 18411 | -4/Factory | Reprogrammed and armed K-01 Serf 18412 | -4/Factory | Reprogrammed and armed K-01 Serf 18414 | -4/Factory | Reprogrammed and armed K-01 Serf 18461 | -4/Factory | Found Prototype Processor 18461 | -4/Factory | Identified Exp. Signal Interpreter 18528 | -4/Factory | Repaired Nuclear Pulse Array 18545 | -4/Factory | Fabricated IN-MT5's Pitchfork "Insurrection" (x1) 18564 | -4/Factory | Unchained authorized (QV-33N) 18654 | -4/Factory | Found Exp. Signal Interpreter 18661 | -4/Factory | Reprogrammed and armed K-01 Serf 18663 | -4/Factory | Reprogrammed and armed K-01 Serf 18665 | -4/Factory | Reprogrammed and armed K-01 Serf 18679 | -4/Factory | Reprogrammed and armed K-01 Serf 18682 | -4/Factory | Reprogrammed and armed K-01 Serf 18696 | -4/Factory | Garrison activated, responded to threat 18713 | -4/Factory | Spotted B-86 Titan 18715 | -4/Factory | Reprogrammed and armed K-01 Serf 18716 | -4/Factory | Reprogrammed and armed K-01 Serf 18742 | -4/Factory | Allies destroyed B-86 Titan 18798 | -4/Factory | Reprogrammed and armed K-01 Serf 18799 | -4/Factory | Lost 7 allies 18799 | -4/Factory | Reprogrammed and armed K-01 Serf 18802 | -4/Factory | Reprogrammed and armed K-01 Serf 18805 | -4/Factory | Reprogrammed and armed K-01 Serf 18810 | -4/Factory | Reprogrammed and armed K-01 Serf 18824 | -4/Factory | Lost 5 parts (2n2u1w) 18831 | -4/Factory | P-70 Sage assimilated allied K-01 Serf 18840 | -4/Factory | Reprogrammed and armed K-01 Serf 18843 | -4/Factory | Reprogrammed and armed K-01 Serf 18879 | -4/Factory | Reprogrammed and armed K-01 Serf 18882 | -4/Factory | Reprogrammed and armed K-01 Serf 18885 | -4/Factory | Reprogrammed and armed K-01 Serf 18889 | -4/Factory | Reprogrammed and armed K-01 Serf 18948 | -4/Factory | Central database locked down 18949 | -4/Factory | Reprogrammed and armed K-01 Serf 18977 | -4/Factory | Reprogrammed and armed K-01 Serf 18978 | -4/Factory | Reprogrammed and armed K-01 Serf 18988 | -4/Factory | Lost 3 allies 18998 | -4/Factory | Reprogrammed and armed K-01 Serf 19062 | -4/Factory | Identified exit to Research 19102 | -4/Factory | Learned location of 1 exit from Proximity Caves 19138 | -4/Factory | Reprogrammed and armed K-01 Serf 19138 | -4/Factory | Reprogrammed and armed K-01 Serf 19146 | -4/Factory | Loaded intel: 26 terminal locations 19151 | -4/Factory | Loaded intel: 4 garrison access locations 19152 | -4/Factory | Learned 4 Research zone layouts 19153 | -4/Factory | Learned 12 Research zone layouts 19154 | -4/Factory | Learned location of 2 exits from Factory 19163 | -4/Factory | Learned location of 2 exits from Proximity Caves 19182 | -4/Factory | Learned Testing trap positions 19193 | -4/Factory | Reprogrammed and armed K-01 Serf 19200 | -4/Factory | Reprogrammed and armed K-01 Serf 19258 | -4/Factory | Lost 5 allies 19303 | -4/Factory | Reprogrammed and armed K-01 Serf 19305 | -4/Factory | Spotted B-86 Titan 19320 | -4/Factory | Reprogrammed and armed K-01 Serf 19354 | -4/Factory | Lost 4 parts (3n1u) 19385 | -4/Factory | Reprogrammed and armed K-01 Serf 19401 | -4/Factory | Core integrity fell below 50% 19426 | -4/Factory | Lost 3 parts (1n2u) 19474 | -4/Factory | Sucked down chute 19474 | -4/Factory | Entered Waste 19489 | -4/Waste | EMP discharged 19489 | -4/Waste | System corruption reached 10% 19504 | -4/Waste | Spotted C-40 Crusher 19506 | -4/Waste | Spotted C-40 Crusher 19510 | -4/Waste | Spotted C-40 Crusher 19521 | -4/Waste | Spotted C-40 Crusher 19523 | -4/Waste | Spotted C-40 Crusher 19525 | -4/Waste | Spotted C-40 Crusher 19548 | -4/Waste | Discovered new exit (range 12) 19553 | -4/Waste | Identified exit to Factory 19553 | -4/Waste | Entered Factory 19669 | -4/Factory | Fabricated IN-MT5's Pitchfork "Insurrection" (x1) 19729 | -4/Factory | Identified exit to DSF 19790 | -4/Factory | Reprogrammed and armed K-01 Serf 19796 | -4/Factory | Core integrity fell below 20% 19801 | -4/Factory | Reprogrammed and armed K-01 Serf 19802 | -4/Factory | Reprogrammed and armed K-01 Serf 19805 | -4/Factory | Reprogrammed and armed K-01 Serf 19828 | -4/Factory | Reprogrammed and armed K-01 Serf 19933 | -4/Factory | Fabricated CPS Tube (x1) 19988 | -4/Factory | Reprogrammed and armed K-01 Serf 19991 | -4/Factory | Reprogrammed and armed K-01 Serf 20077 | -4/Factory | Reprogrammed and armed K-01 Serf 20092 | -4/Factory | Reprogrammed and armed K-01 Serf 20111 | -4/Factory | Reprogrammed and armed K-01 Serf 20128 | -4/Factory | Reprogrammed and armed K-01 Serf 20130 | -4/Factory | Reprogrammed and armed K-01 Serf 20153 | -4/Factory | Lost 4 allies 20263 | -4/Factory | Unchained authorized (QV-33N) 20266 | -4/Factory | Reprogrammed and armed K-01 Serf 20283 | -4/Factory | Reprogrammed and armed K-01 Serf 20293 | -4/Factory | Reprogrammed and armed K-01 Serf 20297 | -4/Factory | Found Imp. Powered Armor 20369 | -4/Factory | Reprogrammed and armed K-01 Serf 20409 | -4/Factory | Reprogrammed and armed K-01 Serf 20410 | -4/Factory | Reprogrammed and armed K-01 Serf 20426 | -4/Factory | Reprogrammed and armed K-01 Serf 20464 | -4/Factory | Reprogrammed and armed K-01 Serf 20467 | -4/Factory | Learned location of 2 exits from Upper Caves 20477 | -4/Factory | Reprogrammed and armed K-01 Serf 20479 | -4/Factory | Reprogrammed and armed K-01 Serf 20480 | -4/Factory | Reprogrammed and armed K-01 Serf 20484 | -4/Factory | Lost 3 allies 20508 | -4/Factory | Learned location of Warlord (-4) 20515 | -4/Factory | Reprogrammed and armed K-01 Serf 20517 | -4/Factory | Reprogrammed and armed K-01 Serf 20522 | -4/Factory | Spotted B-86 Titan 20531 | -4/Factory | Cargo convoy interrupted 20537 | -4/Factory | Allies destroyed B-86 Titan 20540 | -4/Factory | Learned Research repair station intel 20553 | -4/Factory | First assault squad dispatched 20560 | -4/Factory | Learned location of 3 exits from Research 20590 | -4/Factory | Loaded intel: 4 scanalyzer locations 20628 | -4/Factory | Learned 8 Research zone layouts 20645 | -4/Factory | Attached CPS modules to QV-33N. 20652 | -4/Factory | Destroyed 11 combat bots 20675 | -4/Factory | Local machine network offline 20678 | -4/Factory | Lost 6 parts (3n2u1w) 20692 | -4/Factory | Destroyed QV-33N 20693 | -4/Factory | Found Prototype Device 20710 | -4/Factory | Entered Research 20710 | -3/Research | Evolved 2 slots: Propulsion x1, Utility x1 20711 | -3/Research | Identified exit to Armory 20711 | -3/Research | Identified exit to Research 20711 | -3/Research | Identified exit to Quarantine 20713 | -3/Research | Loaded intel: 4 repair station locations 20732 | -3/Research | Lost 9 allies 20795 | -3/Research | Identified QV-33N's Launch Deck 20834 | -3/Research | Fabricated IN-MT5's Pitchfork "Insurrection" (x1) 20931 | -3/Research | Repaired Imp. Powered Armor 20978 | -3/Research | Repaired Kinetic Spear 20984 | -3/Research | Repaired Nanoactuators? 21021 | -3/Research | Repaired Field Propulsion Drive+? 21209 | -3/Research | Found Gamma Bomb Array 21211 | -3/Research | Found Gamma Bomb Array 21245 | -3/Research | Reprogrammed and armed K-01 Serf 21337 | -3/Research | Fabricated Hvy. Armored Exoskeleton? 21400 | -3/Research | Fabricated Huge Storage Unit (x1) 21424 | -3/Research | Build established: Hacker-Scout 21430 | -3/Research | Reprogrammed and armed K-01 Serf 21435 | -3/Research | Reprogrammed and armed K-01 Serf 21437 | -3/Research | Reprogrammed and armed K-01 Serf 21524 | -3/Research | Unchained authorized (CL-0N3) 21614 | -3/Research | Lost 5 allies 21638 | -3/Research | Reprogrammed and armed K-01 Serf 21648 | -3/Research | Reprogrammed and armed K-01 Serf 21649 | -3/Research | Reprogrammed and armed K-01 Serf 21650 | -3/Research | Reprogrammed and armed K-01 Serf 21671 | -3/Research | K-01 Serf reconstituted as Executioner 21671 | -3/Research | Spotted Executioner 21672 | -3/Research | P-80 Master assimilated allied K-01 Serf 21686 | -3/Research | Reprogrammed and armed K-01 Serf 21691 | -3/Research | Reprogrammed and armed K-01 Serf 21696 | -3/Research | Allies destroyed Executioner 21696 | -3/Research | Executioner reconstituted as CL-0N3 21709 | -3/Research | Reprogrammed and armed K-01 Serf 21771 | -3/Research | Reprogrammed and armed K-01 Serf 21776 | -3/Research | Reprogrammed and armed K-01 Serf 21832 | -3/Research | Build established: Hacker-Sprinter 21832 | -3/Research | Reprogrammed and armed K-01 Serf 21835 | -3/Research | Reprogrammed and armed K-01 Serf 21835 | -3/Research | Reprogrammed and armed K-01 Serf 21838 | -3/Research | Reprogrammed and armed K-01 Serf 21841 | -3/Research | Reprogrammed and armed K-01 Serf 21841 | -3/Research | Reprogrammed and armed K-01 Serf 21870 | -3/Research | Allies destroyed CL-0N3 21874 | -3/Research | Extracted schematics, analyses from CL-0N3's data core 21929 | -3/Research | Local machine network offline 21989 | -3/Research | Discovered exit to Research (range 4) 22026 | -3/Research | Reprogrammed and armed K-01 Serf 22306 | -3/Research | Entered Armory 22307 | -3/Armory | Met VL-GR5, who suggested a friendly competition 22367 | -3/Armory | Local machine network offline 22370 | -3/Armory | Fabricated IN-MT5's Pitchfork "Insurrection" (x1) 22405 | -3/Armory | Found Prototype Device 22405 | -3/Armory | Identified System Purifier 22439 | -3/Armory | Found Prototype Device 22439 | -3/Armory | Identified Exp. Thermal Shield 22542 | -3/Armory | Lost the competition with VL-GR5 22663 | -3/Armory | Discovered exit to Research (range 4) 22700 | -3/Armory | VL-GR5 left a parting gift on exiting Armory 22701 | -3/Armory | Found Prototype Energy Cannon 22828 | -3/Armory | Found Gamma Bomb Array 22895 | -3/Armory | Found Quantum Capacitor 22897 | -3/Armory | Identified Multinova Projection Cannon 22922 | -3/Armory | Found Exp. Thermal Shield 23108 | -3/Armory | QV-33N's Launch Deck released Thermal Drone (x1) 23116 | -3/Armory | QV-33N's Launch Deck released Stasis Drone (x1) 23121 | -3/Armory | QV-33N's Launch Deck released Kinetic Drone (x1) 23134 | -3/Armory | QV-33N's Launch Deck released Kinetic Drone (x1) 23162 | -3/Armory | QV-33N's Launch Deck released Stasis Drone (x1) 23167 | -3/Armory | QV-33N's Launch Deck released Kinetic Drone (x1) 23172 | -3/Armory | QV-33N's Launch Deck released Thermal Drone (x1) 23177 | -3/Armory | QV-33N's Launch Deck released Thermal Drone (x1) 23182 | -3/Armory | QV-33N's Launch Deck released EX Drone (x1) 23196 | -3/Armory | QV-33N's Launch Deck released Antisys Drone (x1) 23212 | -3/Armory | QV-33N's Launch Deck released Antisys Drone (x1) 23221 | -3/Armory | Build established: Mutant 23251 | -3/Armory | Lost 4 allies 23290 | -3/Armory | QV-33N's Launch Deck released Kinetic Drone (x1) 23295 | -3/Armory | QV-33N's Launch Deck released Kinetic Drone (x1) 23317 | -3/Armory | QV-33N's Launch Deck released Antisys Drone (x1) 23322 | -3/Armory | QV-33N's Launch Deck released Kinetic Drone (x1) 23388 | -3/Armory | QV-33N's Launch Deck released Thermal Drone (x1) 23423 | -3/Armory | QV-33N's Launch Deck released Thermal Drone (x1) 23448 | -3/Armory | Found Prototype Processor 23448 | -3/Armory | Identified Exp. Terrain Scan Processor 23454 | -3/Armory | Found Prototype Processor 23454 | -3/Armory | Identified Spectral Analyzer 23499 | -3/Armory | QV-33N's Launch Deck released Antisys Drone (x1) 23545 | -3/Armory | Discovered exit to Research (range 19) 23727 | -3/Armory | Discovered new exit (range 8) 23784 | -3/Armory | QV-33N's Launch Deck released Antisys Drone (x1) 23789 | -3/Armory | QV-33N's Launch Deck released Thermal Drone (x1) 23798 | -3/Armory | QV-33N's Launch Deck released Thermal Drone (x1) 23967 | -3/Armory | Build established: Commander-Mutant 24000 | -3/Armory | Spotted Armor Guard 24000 | -3/Armory | Spotted Armor Guard 24014 | -3/Armory | Destroyed Armor Guard 24015 | -3/Armory | Destroyed Armor Guard 24042 | -3/Armory | Found Superdense Plating 24050 | -3/Armory | Found Corrupted Exp. Weapon Cycler 24060 | -3/Armory | QV-33N's Launch Deck released Antisys Drone (x1) 24065 | -3/Armory | QV-33N's Launch Deck released Thermal Drone (x1) 24070 | -3/Armory | QV-33N's Launch Deck released Antisys Drone (x1) 24075 | -3/Armory | QV-33N's Launch Deck released Thermal Drone (x1) 24092 | -3/Armory | Allies destroyed Armor Guard 24103 | -3/Armory | Allies destroyed Armor Guard 24166 | -3/Armory | QV-33N's Launch Deck released Thermal Drone (x1) 24171 | -3/Armory | QV-33N's Launch Deck released Kinetic Drone (x1) 24179 | -3/Armory | QV-33N's Launch Deck released Thermal Drone (x1) 24184 | -3/Armory | QV-33N's Launch Deck released Thermal Drone (x1) 24310 | -3/Armory | QV-33N's Launch Deck released Stasis Drone (x1) 24428 | -3/Armory | Build established: Mutant 24459 | -3/Armory | QV-33N's Launch Deck released Antisys Drone (x1) 24632 | -3/Armory | Entered Lab 24632 | -3/Lab | Discovered exit to Research (range 9) 24654 | -3/Lab | Hidden lab's door opened automatically 24654 | -3/Lab | Sensor layout match revealed 24655 | -3/Lab | Gained access to the hidden lab's interior 24774 | -3/Lab | Found Alien Artifact 24774 | -3/Lab | Identified Core Regenerator 24774 | -3/Lab | Used Core Regenerator, restored core integrity (+157) 24779 | -3/Lab | Found Alien Artifact 24779 | -3/Lab | Identified Integrated Reactor 24779 | -3/Lab | Installed Integrated Reactor, increased core energy generation (+10) 24788 | -3/Lab | Found Alien Artifact 24863 | -3/Lab | Found Prototype Hackware 25109 | -3/Lab | Found Med. Regenerative Plating 25146 | -3/Lab | Found Prototype Energy Gun 25149 | -3/Lab | Found Prototype Energy Gun 25177 | -3/Lab | Detected by scanners 25191 | -3/Lab | Confronted by A5 25201 | -3/Lab | Destroyed A5 25221 | -3/Lab | Found Prototype Special Weapon 25235 | -3/Lab | Found Med. Regenerative Plating 25250 | -3/Lab | Found Prototype Hackware 25254 | -3/Lab | Found Prototype Hackware 25470 | -3/Lab | Identified Hyp. EM Gauss Rifle (x2) 25471 | -3/Lab | Identified Gui. Remote Datajack 25588 | -3/Lab | Entered Research 25588 | -2/Research | Evolved 2 slots: Propulsion x2 25706 | -2/Research | Reprogrammed and armed K-01 Serf 25710 | -2/Research | Discovered new exit (range 24) 25744 | -2/Research | Identified Exp. Hacking Suite 25792 | -2/Research | Unchained authorized (GL-D0S) 25795 | -2/Research | Fabricated IN-MT5's Pitchfork "Insurrection" (x1) 25857 | -2/Research | Reprogrammed and armed K-01 Serf 25859 | -2/Research | Found Prototype Device 25860 | -2/Research | Identified Adv. Kinecellerator 25865 | -2/Research | Found Prototype Launcher 25899 | -2/Research | Reprogrammed and armed K-01 Serf 25914 | -2/Research | Local machine network offline 26042 | -2/Research | QV-33N's Launch Deck released Thermal Drone (x1) 26047 | -2/Research | QV-33N's Launch Deck released Thermal Drone (x1) 26064 | -2/Research | Discovered new exit (range 23) 26097 | -2/Research | QV-33N's Launch Deck released Kinetic Drone (x1) 26160 | -2/Research | QV-33N's Launch Deck released Stasis Drone (x1) 26165 | -2/Research | QV-33N's Launch Deck released EX Drone (x1) 26181 | -2/Research | QV-33N's Launch Deck released Antisys Drone (x1) 26224 | -2/Research | QV-33N's Launch Deck released Thermal Drone (x1) 26231 | -2/Research | Reprogrammed and armed K-01 Serf 26233 | -2/Research | QV-33N's Launch Deck released Kinetic Drone (x1) 26242 | -2/Research | QV-33N's Launch Deck released EX Drone (x1) 26247 | -2/Research | QV-33N's Launch Deck released Stasis Drone (x1) 26261 | -2/Research | QV-33N's Launch Deck released Kinetic Drone (x1) 26269 | -2/Research | QV-33N's Launch Deck released Thermal Drone (x1) 26298 | -2/Research | Reprogrammed and armed K-01 Serf 26301 | -2/Research | Reprogrammed and armed K-01 Serf 26317 | -2/Research | P-80 Master assimilated allied K-01 Serf 26325 | -2/Research | P-80 Master assimilated allied K-01 Serf 26331 | -2/Research | Reprogrammed and armed K-01 Serf 26338 | -2/Research | First assault squad dispatched 26338 | -2/Research | Reprogrammed and armed K-01 Serf 26353 | -2/Research | QV-33N's Launch Deck released Kinetic Drone (x1) 26358 | -2/Research | QV-33N's Launch Deck released Thermal Drone (x1) 26365 | -2/Research | Identified Enh. Gamma Bomb Array 26425 | -2/Research | Lost 3 allies 26454 | -2/Research | Spotted B-90 Cyclops 26578 | -2/Research | Reprogrammed and armed K-01 Serf 26601 | -2/Research | Spotted B-90 Cyclops 26603 | -2/Research | Reprogrammed and armed K-01 Serf 26625 | -2/Research | Allies destroyed B-90 Cyclops 26653 | -2/Research | Found Quantum Capacitor 26656 | -2/Research | Intercept squad dispatched 26668 | -2/Research | Reprogrammed and armed K-01 Serf 26671 | -2/Research | Spotted Tracker 26671 | -2/Research | Spotted Tracker 26695 | -2/Research | Destroyed Tracker 26698 | -2/Research | Spotted Combat Programmer 26700 | -2/Research | Destroyed Tracker 26716 | -2/Research | Spotted Combat Programmer 26720 | -2/Research | Destroyed Combat Programmer 26736 | -2/Research | Destroyed Combat Programmer 26760 | -2/Research | QV-33N's Launch Deck released Thermal Drone (x1) 26763 | -2/Research | Reprogrammed and armed K-01 Serf 26765 | -2/Research | QV-33N's Launch Deck released Antisys Drone (x1) 26770 | -2/Research | QV-33N's Launch Deck released Thermal Drone (x1) 26775 | -2/Research | QV-33N's Launch Deck released Kinetic Drone (x1) 26780 | -2/Research | QV-33N's Launch Deck released Thermal Drone (x1) 26790 | -2/Research | QV-33N's Launch Deck released Thermal Drone (x1) 26795 | -2/Research | QV-33N's Launch Deck released Kinetic Drone (x1) 26800 | -2/Research | QV-33N's Launch Deck released EX Drone (x1) 26802 | -2/Research | Discovered new exit (range 46) 26805 | -2/Research | QV-33N's Launch Deck released Thermal Drone (x1) 26844 | -2/Research | QV-33N's Launch Deck released Thermal Drone (x1) 26849 | -2/Research | Reprogrammed and armed K-01 Serf 26935 | -2/Research | Reprogrammed and armed K-01 Serf 26953 | -2/Research | Identified exit to Access 27004 | -2/Research | QV-33N's Launch Deck released Kinetic Drone (x1) 27009 | -2/Research | QV-33N's Launch Deck released Kinetic Drone (x1) 27014 | -2/Research | QV-33N's Launch Deck released Antisys Drone (x1) 27019 | -2/Research | QV-33N's Launch Deck released Thermal Drone (x1) 27038 | -2/Research | QV-33N's Launch Deck released Kinetic Drone (x1) 27043 | -2/Research | QV-33N's Launch Deck released Kinetic Drone (x1) 27048 | -2/Research | QV-33N's Launch Deck released Stasis Drone (x1) 27050 | -2/Research | Reprogrammed and armed K-01 Serf 27053 | -2/Research | QV-33N's Launch Deck released Kinetic Drone (x1) 27062 | -2/Research | QV-33N's Launch Deck released Kinetic Drone (x1) 27129 | -2/Research | Spotted B-90 Cyclops 27138 | -2/Research | Destroyed B-90 Cyclops 27189 | -2/Research | High security lockdown imminent 27240 | -2/Research | QV-33N's Launch Deck released Antisys Drone (x1) 27245 | -2/Research | QV-33N's Launch Deck released EX Drone (x1) 27250 | -2/Research | QV-33N's Launch Deck released Kinetic Drone (x1) 27255 | -2/Research | QV-33N's Launch Deck released Thermal Drone (x1) 27260 | -2/Research | QV-33N's Launch Deck released EX Drone (x1) 27265 | -2/Research | QV-33N's Launch Deck released Antisys Drone (x1) 27269 | -2/Research | High security lockdown engaged 27270 | -2/Research | QV-33N's Launch Deck released Thermal Drone (x1) 27270 | -2/Research | Reprogrammed and armed K-01 Serf 27275 | -2/Research | QV-33N's Launch Deck released Thermal Drone (x1) 27280 | -2/Research | QV-33N's Launch Deck released Stasis Drone (x1) 27285 | -2/Research | QV-33N's Launch Deck released Thermal Drone (x1) 27290 | -2/Research | QV-33N's Launch Deck released Thermal Drone (x1) 27298 | -2/Research | QV-33N's Launch Deck released Antisys Drone (x1) 27299 | -2/Research | Found Prototype Launcher 27303 | -2/Research | QV-33N's Launch Deck released EX Drone (x1) 27308 | -2/Research | QV-33N's Launch Deck released Kinetic Drone (x1) 27334 | -2/Research | Garrison activated, responded to threat 27408 | -2/Research | Spotted Striker 27408 | -2/Research | Spotted Executioner 27408 | -2/Research | Spotted Striker 27420 | -2/Research | Destroyed Striker 27422 | -2/Research | Destroyed Executioner 27423 | -2/Research | Destroyed Striker 27453 | -2/Research | Destroyed 13 combat bots 27458 | -2/Research | Lost 7 allies 27467 | -2/Research | Identified Hellfire Missile Launcher 27517 | -2/Research | System corruption reached 10% 27526 | -2/Research | QV-33N's Launch Deck released Thermal Drone (x1) 27528 | -2/Research | Destroyed 10 combat bots 27531 | -2/Research | QV-33N's Launch Deck released Kinetic Drone (x1) 27532 | -2/Research | Entered Access 27532 | -1/Access | Accompanied by 2 allies 27532 | -1/Access | Evolved 2 slots: Utility x2 27575 | -1/Access | Identified Deep Network Scanner 27576 | -1/Access | Identified Exp. System Shield 27577 | -1/Access | Identified exit to Surface 27607 | -1/Access | Reprogrammed and armed K-01 Serf 27648 | -1/Access | Garrison activated, responded to threat 27782 | -1/Access | First assault squad dispatched 27839 | -1/Access | High security lockdown imminent 27885 | -1/Access | Reprogrammed and armed K-01 Serf 27889 | -1/Access | Build established: Hacker-Mutant 27919 | -1/Access | High security lockdown engaged 27926 | -1/Access | Destroyed 9 combat bots 27935 | -1/Access | QV-33N's Launch Deck released Antisys Drone (x1) 27940 | -1/Access | QV-33N's Launch Deck released Thermal Drone (x1) 27945 | -1/Access | QV-33N's Launch Deck released Antisys Drone (x1) 27950 | -1/Access | QV-33N's Launch Deck released Kinetic Drone (x1) 27955 | -1/Access | QV-33N's Launch Deck released Kinetic Drone (x1) 27966 | -1/Access | Garrison activated, responded to threat 27981 | -1/Access | QV-33N's Launch Deck released EX Drone (x1) 27986 | -1/Access | QV-33N's Launch Deck released Thermal Drone (x1) 27991 | -1/Access | QV-33N's Launch Deck released Thermal Drone (x1) 27996 | -1/Access | QV-33N's Launch Deck released Kinetic Drone (x1) 28001 | -1/Access | QV-33N's Launch Deck released Thermal Drone (x1) 28006 | -1/Access | QV-33N's Launch Deck released Kinetic Drone (x1) 28011 | -1/Access | QV-33N's Launch Deck released EX Drone (x1) 28016 | -1/Access | QV-33N's Launch Deck released Antisys Drone (x1) 28021 | -1/Access | QV-33N's Launch Deck released Kinetic Drone (x1) 28026 | -1/Access | QV-33N's Launch Deck released Antisys Drone (x1) 28031 | -1/Access | QV-33N's Launch Deck released Antisys Drone (x1) 28035 | -1/Access | Lost 4 allies 28036 | -1/Access | QV-33N's Launch Deck released Stasis Drone (x1) 28041 | -1/Access | QV-33N's Launch Deck released Thermal Drone (x1) 28046 | -1/Access | QV-33N's Launch Deck released Antisys Drone (x1) 28051 | -1/Access | QV-33N's Launch Deck released Thermal Drone (x1) 28052 | -1/Access | Garrison activated, responded to threat 28056 | -1/Access | QV-33N's Launch Deck released Thermal Drone (x1) 28058 | -1/Access | Spotted Investigator 28061 | -1/Access | QV-33N's Launch Deck released Antisys Drone (x1) 28063 | -1/Access | Allies destroyed Investigator 28066 | -1/Access | QV-33N's Launch Deck released Stasis Drone (x1) 28071 | -1/Access | QV-33N's Launch Deck released Kinetic Drone (x1) 28076 | -1/Access | QV-33N's Launch Deck released Kinetic Drone (x1) 28081 | -1/Access | QV-33N's Launch Deck released Kinetic Drone (x1) 28086 | -1/Access | QV-33N's Launch Deck released Thermal Drone (x1) 28091 | -1/Access | QV-33N's Launch Deck released EX Drone (x1) 28096 | -1/Access | QV-33N's Launch Deck released Thermal Drone (x1) 28101 | -1/Access | QV-33N's Launch Deck released Kinetic Drone (x1) 28103 | -1/Access | Garrison activated, responded to threat 28109 | -1/Access | QV-33N's Launch Deck released Thermal Drone (x1) 28111 | -1/Access | Spotted Striker 28111 | -1/Access | Spotted Executioner 28114 | -1/Access | QV-33N's Launch Deck released Stasis Drone (x1) 28118 | -1/Access | Destroyed Striker 28119 | -1/Access | QV-33N's Launch Deck released Kinetic Drone (x1) 28121 | -1/Access | Destroyed Executioner 28124 | -1/Access | QV-33N's Launch Deck released Thermal Drone (x1) 28137 | -1/Access | QV-33N's Launch Deck released Stasis Drone (x1) 28142 | -1/Access | QV-33N's Launch Deck released Antisys Drone (x1) 28145 | -1/Access | Lost 5 allies 28147 | -1/Access | QV-33N's Launch Deck released Kinetic Drone (x1) 28152 | -1/Access | QV-33N's Launch Deck released Kinetic Drone (x1) 28157 | -1/Access | QV-33N's Launch Deck released Thermal Drone (x1) 28162 | -1/Access | QV-33N's Launch Deck released EX Drone (x1) 28167 | -1/Access | QV-33N's Launch Deck released Antisys Drone (x1) 28172 | -1/Access | QV-33N's Launch Deck released Kinetic Drone (x1) 28177 | -1/Access | QV-33N's Launch Deck released Antisys Drone (x1) 28182 | -1/Access | QV-33N's Launch Deck released Stasis Drone (x1) 28187 | -1/Access | QV-33N's Launch Deck released Antisys Drone (x1) 28190 | -1/Access | Spotted Striker 28190 | -1/Access | Spotted Striker 28190 | -1/Access | Spotted Executioner 28190 | -1/Access | Spotted Executioner 28191 | -1/Access | Build established: Scavenger-Mutant 28192 | -1/Access | QV-33N's Launch Deck released EX Drone (x1) 28197 | -1/Access | QV-33N's Launch Deck released Kinetic Drone (x1) 28199 | -1/Access | Destroyed Striker 28202 | -1/Access | QV-33N's Launch Deck released Thermal Drone (x1) 28205 | -1/Access | Destroyed Striker 28207 | -1/Access | QV-33N's Launch Deck released Kinetic Drone (x1) 28208 | -1/Access | Allies destroyed Executioner 28212 | -1/Access | QV-33N's Launch Deck released Kinetic Drone (x1) 28217 | -1/Access | QV-33N's Launch Deck released Thermal Drone (x1) 28222 | -1/Access | QV-33N's Launch Deck released Kinetic Drone (x1) 28227 | -1/Access | QV-33N's Launch Deck released Kinetic Drone (x1) 28232 | -1/Access | QV-33N's Launch Deck released Thermal Drone (x1) 28236 | -1/Access | Found Prototype Processor 28237 | -1/Access | QV-33N's Launch Deck released EX Drone (x1) 28242 | -1/Access | QV-33N's Launch Deck released Antisys Drone (x1) 28247 | -1/Access | QV-33N's Launch Deck released Kinetic Drone (x1) 28252 | -1/Access | QV-33N's Launch Deck released EX Drone (x1) 28257 | -1/Access | QV-33N's Launch Deck released Kinetic Drone (x1) 28262 | -1/Access | QV-33N's Launch Deck released EX Drone (x1) 28267 | -1/Access | QV-33N's Launch Deck released Thermal Drone (x1) 28272 | -1/Access | QV-33N's Launch Deck released Antisys Drone (x1) 28277 | -1/Access | QV-33N's Launch Deck released Antisys Drone (x1) 28282 | -1/Access | QV-33N's Launch Deck released Kinetic Drone (x1) 28287 | -1/Access | QV-33N's Launch Deck released Antisys Drone (x1) 28292 | -1/Access | QV-33N's Launch Deck released Antisys Drone (x1) 28297 | -1/Access | QV-33N's Launch Deck released EX Drone (x1) 28302 | -1/Access | QV-33N's Launch Deck released Thermal Drone (x1) 28307 | -1/Access | QV-33N's Launch Deck released Kinetic Drone (x1) 28312 | -1/Access | QV-33N's Launch Deck released Antisys Drone (x1) 28317 | -1/Access | QV-33N's Launch Deck released EX Drone (x1) 28322 | -1/Access | QV-33N's Launch Deck released Kinetic Drone (x1) 28327 | -1/Access | QV-33N's Launch Deck released Antisys Drone (x1) 28332 | -1/Access | QV-33N's Launch Deck released EX Drone (x1) 28332 | -1/Access | Reprogrammed and armed K-01 Serf 28336 | -1/Access | Destroyed 11 combat bots 28337 | -1/Access | QV-33N's Launch Deck released Kinetic Drone (x1) 28342 | -1/Access | QV-33N's Launch Deck released Thermal Drone (x1) 28347 | -1/Access | QV-33N's Launch Deck released Antisys Drone (x1) 28352 | -1/Access | QV-33N's Launch Deck released EX Drone (x1) 28353 | -1/Access | Spotted Striker 28357 | -1/Access | QV-33N's Launch Deck released Thermal Drone (x1) 28362 | -1/Access | QV-33N's Launch Deck released Thermal Drone (x1) 28367 | -1/Access | QV-33N's Launch Deck released Thermal Drone (x1) 28369 | -1/Access | Allies destroyed Striker 28372 | -1/Access | QV-33N's Launch Deck released Antisys Drone (x1) 28377 | -1/Access | QV-33N's Launch Deck released Antisys Drone (x1) 28382 | -1/Access | QV-33N's Launch Deck released Kinetic Drone (x1) 28387 | -1/Access | QV-33N's Launch Deck released Kinetic Drone (x1) 28389 | -1/Access | Lost 5 allies 28391 | -1/Access | Reprogrammed and armed K-01 Serf 28392 | -1/Access | QV-33N's Launch Deck released Antisys Drone (x1) 28397 | -1/Access | QV-33N's Launch Deck released Stasis Drone (x1) 28422 | -1/Access | Reprogrammed and armed K-01 Serf 28454 | -1/Access | QV-33N's Launch Deck released Kinetic Drone (x1) 28459 | -1/Access | QV-33N's Launch Deck released Antisys Drone (x1) 28464 | -1/Access | QV-33N's Launch Deck released Kinetic Drone (x1) 28469 | -1/Access | QV-33N's Launch Deck released Antisys Drone (x1) 28474 | -1/Access | QV-33N's Launch Deck released Kinetic Drone (x1) 28490 | -1/Access | Reprogrammed and armed K-01 Serf 28521 | -1/Access | Spotted B-99 Colossus 28537 | -1/Access | QV-33N's Launch Deck released Antisys Drone (x1) 28542 | -1/Access | QV-33N's Launch Deck released Thermal Drone (x1) 28547 | -1/Access | QV-33N's Launch Deck released Thermal Drone (x1) 28552 | -1/Access | QV-33N's Launch Deck released Kinetic Drone (x1) 28557 | -1/Access | QV-33N's Launch Deck released Thermal Drone (x1) 28559 | -1/Access | Allies destroyed B-99 Colossus 28561 | -1/Access | Identified Exp. Core Analyzer 28562 | -1/Access | QV-33N's Launch Deck released Kinetic Drone (x1) 28567 | -1/Access | QV-33N's Launch Deck released Antisys Drone (x1) 28572 | -1/Access | QV-33N's Launch Deck released Thermal Drone (x1) 28577 | -1/Access | Sterilization system engaged 28581 | -1/Access | QV-33N's Launch Deck released Kinetic Drone (x1) 28586 | -1/Access | QV-33N's Launch Deck released Thermal Drone (x1) 28591 | -1/Access | QV-33N's Launch Deck released Thermal Drone (x1) 28599 | -1/Access | Lost 3 parts (1n2u) 28603 | -1/Access | Lost 9 allies 28632 | -1/Access | Spotted B-99 Colossus 28638 | -1/Access | Allies destroyed B-99 Colossus 28649 | -1/Access | Found Prototype Ballistic Gun 28666 | -1/Access | QV-33N's Launch Deck released Antisys Drone (x1) 28666 | -1/Access | Spotted Executioner 28671 | -1/Access | QV-33N's Launch Deck released Antisys Drone (x1) 28671 | -1/Access | Destroyed Executioner 28676 | -1/Access | QV-33N's Launch Deck released Antisys Drone (x1) 28684 | -1/Access | Spotted Striker 28689 | -1/Access | Destroyed Striker 28719 | -1/Access | Destroyed 7 combat bots 28720 | -1/Access | Lost 4 allies 28734 | -1/Access | Reprogrammed and armed K-01 Serf 28738 | -1/Access | Local machine network offline 28877 | -1/Access | Ambient heat levels rising (+10) 28921 | -1/Access | Reprogrammed and armed K-01 Serf 28941 | -1/Access | Identified Multirail 29027 | -1/Access | Ambient heat levels rising (+10) 29095 | -1/Access | Discovered new exit (range 9) 29177 | -1/Access | Ambient heat levels rising (+10) 29210 | -1/Access | Found Prototype Launcher 29327 | -1/Access | Ambient heat levels rising (+10) 29477 | -1/Access | Ambient heat levels rising (+10) 29603 | -1/Access | Identified Gui. Micro-nuke Launcher 29627 | -1/Access | Ambient heat levels rising (+10) 29777 | -1/Access | Ambient heat levels rising (+10) 29916 | -1/Access | Found Prototype Protection 29918 | -1/Access | Identified Centrium Heavy Armor Plating 29927 | -1/Access | Ambient heat levels rising (+10) 30008 | -1/Access | Spotted B-99 Colossus 30016 | -1/Access | Spotted B-99 Colossus 30077 | -1/Access | Ambient heat levels rising (+10) 30152 | -1/Access | Destroyed B-99 Colossus 30227 | -1/Access | Ambient heat levels rising (+10) 30365 | -1/Access | Entered Command 30372 | -1/Command | QV-33N's Launch Deck released Antisys Drone (x1) 30377 | -1/Command | QV-33N's Launch Deck released Kinetic Drone (x1) 30382 | -1/Command | QV-33N's Launch Deck released Thermal Drone (x1) 30390 | -1/Command | QV-33N's Launch Deck released Kinetic Drone (x1) 30395 | -1/Command | QV-33N's Launch Deck released Kinetic Drone (x1) 30493 | -1/Command | Spotted B-99 Colossus 30513 | -1/Command | Destroyed B-99 Colossus 30580 | -1/Command | High security lockdown imminent 30589 | -1/Command | Reprogrammed and armed K-01 Serf 30660 | -1/Command | High security lockdown engaged 30661 | -1/Command | Reprogrammed and armed K-01 Serf 30675 | -1/Command | Reprogrammed and armed K-01 Serf 30711 | -1/Command | Reprogrammed and armed K-01 Serf 30711 | -1/Command | Reprogrammed and armed K-01 Serf 30743 | -1/Command | Spotted M Guard 30743 | -1/Command | Spotted M Guard 30745 | -1/Command | Spotted Combat Programmer 30745 | -1/Command | Spotted Combat Programmer 30771 | -1/Command | Destroyed Combat Programmer 30785 | -1/Command | Lost 4 allies 30799 | -1/Command | Destroyed Combat Programmer 30807 | -1/Command | Spotted Investigator 30807 | -1/Command | Scanned by Researcher 30812 | -1/Command | Spotted Striker 30829 | -1/Command | Destroyed Striker 30846 | -1/Command | Destroyed Investigator 30854 | -1/Command | Destroyed M Guard 30864 | -1/Command | Crushed by falling debris 30864 | -1/Command | System corruption reached 10% 30866 | -1/Command | Destroyed M Guard 30866 | -1/Command | All MAIN.C guards destroyed 30875 | -1/Command | Crushed by falling debris 30891 | -1/Command | Crushed by falling debris 30900 | -1/Command | QV-33N's Launch Deck released Antisys Drone (x1) 30905 | -1/Command | QV-33N's Launch Deck released Antisys Drone (x1) 30910 | -1/Command | QV-33N's Launch Deck released Antisys Drone (x1) 30913 | -1/Command | Destroyed 26 combat bots 30915 | -1/Command | QV-33N's Launch Deck released Kinetic Drone (x1) 30917 | -1/Command | System corruption reached 30% 30920 | -1/Command | QV-33N's Launch Deck released Kinetic Drone (x1) 30922 | -1/Command | Lost 20 parts (1p7n9u3w) 30925 | -1/Command | QV-33N's Launch Deck released Kinetic Drone (x1) 30930 | -1/Command | QV-33N's Launch Deck released Antisys Drone (x1) 30935 | -1/Command | QV-33N's Launch Deck released Kinetic Drone (x1) 30940 | -1/Command | QV-33N's Launch Deck released Antisys Drone (x1) 30945 | -1/Command | QV-33N's Launch Deck released Antisys Drone (x1) 30988 | -1/Command | Spotted Investigator 30989 | -1/Command | Allies destroyed Investigator 30990 | -1/Command | Spotted Striker 30995 | -1/Command | QV-33N's Launch Deck released Thermal Drone (x1) 31000 | -1/Command | QV-33N's Launch Deck released Kinetic Drone (x1) 31005 | -1/Command | QV-33N's Launch Deck released Kinetic Drone (x1) 31006 | -1/Command | Spotted Executioner 31006 | -1/Command | Allies destroyed Striker 31008 | -1/Command | Destroyed Executioner 31010 | -1/Command | QV-33N's Launch Deck released Antisys Drone (x1) 31015 | -1/Command | QV-33N's Launch Deck released Thermal Drone (x1) 31020 | -1/Command | QV-33N's Launch Deck released Thermal Drone (x1) 31025 | -1/Command | QV-33N's Launch Deck released Thermal Drone (x1) 31030 | -1/Command | QV-33N's Launch Deck released Kinetic Drone (x1) 31035 | -1/Command | QV-33N's Launch Deck released Kinetic Drone (x1) 31040 | -1/Command | QV-33N's Launch Deck released Kinetic Drone (x1) 31045 | -1/Command | QV-33N's Launch Deck released Stasis Drone (x1) 31049 | -1/Command | Destroyed Striker 31050 | -1/Command | QV-33N's Launch Deck released Kinetic Drone (x1) 31055 | -1/Command | QV-33N's Launch Deck released Thermal Drone (x1) 31060 | -1/Command | QV-33N's Launch Deck released Antisys Drone (x1) 31065 | -1/Command | QV-33N's Launch Deck released Kinetic Drone (x1) 31070 | -1/Command | QV-33N's Launch Deck released EX Drone (x1) 31075 | -1/Command | QV-33N's Launch Deck released Stasis Drone (x1) 31099 | -1/Command | Lost 19 allies 31155 | -1/Command | Lost 4 parts (1n2u1w) 31267 | -1/Command | Core integrity fell below 50% 31271 | -1/Command | Spotted Executioner 31274 | -1/Command | Spotted Striker 31274 | -1/Command | Spotted Striker 31293 | -1/Command | Core integrity fell below 20% 31296 | -1/Command | Destroyed by G-73 Enforcer with Heavy Laser Last Messages --------------- 31274_ Slug penetrates Earth. 31274_ Biometal Leg destroyed. 31275_ Knocked back. 31277_ Penetrated by Slug. 31286_ Knocked back. 31288_ Penetrated by Slug. 31288_ Acquired 5 matter. 31289_ System corrupted: Matter fused (-7). 31292_ G-73 Enforcer springs to life. 31293_ Fabnet algorithm triggers G-73 Enforcer IFF filter rewrite. 31293_ G-73 Enforcer springs to life. 31293_ G-73 Enforcer destroyed. 31293_ G-73 Enforcer springs to life. 31293_ G-73 Enforcer destroyed. 31294_ Slammed into G-73 Enforcer. 31294_ Destabilizing: System interference. 31294_ Spectral Analyzer temporarily disabled. 31295_ Slammed into G-73 Enforcer. 31295_ Destabilizing: System corrupted (+1). 31296_ Slammed into G-73 Enforcer. Map ----- +----------------------------------------------------+ | ?????????????????????????????????????????????????? | | ?????????????????????????????????????????????????? | | ?????????????????????????????????????????????????? | | ?????????????????????????????????????????????????? | | ?????????????????????????????????????????????????? | | ?????????????????????????????????????????????????? | | ?????????????????????????????????????????????????? | | ?????????????????????????????????????????????????? | | ?????????????????????????????????????????????????? | | ?????????????????????????????????????????????????? | | ?????????????????????????????????????????????????? | | ?????????????????????????????????????????????????? | | ?????????????????????????###?????????????????????? | | ????????????????????????? #?????????????????????? | | ????????????????????????? #???????w?????????????? | | ????????????????????????# #?????????????????????? | | ????????????????????????# #?????????????????????? | | ????????????????????????#g #?????????????????????? | | ????????????????????????# g#?????????????????????? | | ???????????????????????## ##????????????????????? | | ????????????????????ggg#=ggg#????????????????????? | | ???????????????????gggg#gg g#????????????????????? | | ???????????????????gggg#=ggg#????????????????????? | | ???????????????????gggg#gg g#????????????????????? | | ???????????????????g?gg#gggg#????????????????????? | | ????????????????????ggg#g@g #????????????????????? | | ???????????????????#g#?##g###????????????????????? | | ???????????????????# #??#g#??????????????????????? | | ???????????????#???#g#??#K#??????????????????????? | | ??????????# #### ### ####K#??????????????????????? | | ??????????# #??????????????????????? | | ??????????#########"#######??????????????????????? | | ?????????????????# %#???????????????????????????? | | ?????????????????#p #???????????????????????????? | | ?????????????????# #???????????????????????????? | | ?????????????????# % #???????????????????????????? | | ?????????????????# #???????????????????????????? | | ?????????????????# #???????????????????????????? | | ?????????????????# #???????????????????????????? | | ?????????????????# #???????????????????????????? | | ?????????????????# #???????????????????????????? | | ?????????????##??# #???????????????????????????? | | ?????????????# ### #???????????????????????????? | | ??????????????# # #???????????????????????????? | | ???????????????# ###?????????????????????????? | | ???????????????## #??????????????????######## | | ???????????????# ###?????????????????# | | ???????????????# % # #?????????????????# ! | | ??????????????### # #?????????????????# "" | | ??????????????# #######???????????# """" | +----------------------------------------------------+ Best States ------------- Heat Dissipation 159 Coolant Potential 130 Energy Generation 55 Energy Capacity 950 Matter Stores 700 Matter Capacity 700 Sight Range 24 Robot Scan Range 20 Terrain Scan Density 1010 Jamming Range 16 Additional Mass Support 25 Base Temperature (-) 400 Corruption Containment 12 Armor Coverage 1825 Resistance: KI 25 Resistance: TH 30 Propulsion Shielding 90 Weapon Cycling 30 Melee Speed Boost 30 Phase Shifting 15 Evasion (%) 99 Core Analysis 8 Armor Integrity Analysis 30 Recoil Reduction 2 Force Boost 40 Offensive Hacking 62 Defensive Hacking 36 Relay Coupler Types 1 Relay Coupler Value 30 Authchip Count 2 Trap Extractor Capacity 8 Item Schematics ----------------- Hacking Suite | -9/Materials | Scanalyzed Surge Thruster | -8/Materials | Scanalyzed Exp. Sensor Array | -8/Materials | Scanalyzed Coolant Injector | -8/Materials | Scanalyzed Adv. Melee Analysis Suite | -8/Storage | Hacked Matter Compressor | -8/Recycling | Hacked IN-MT5's Pitchfork "Insurrection" | -8/Scraptown | Archive CPS Tube | -6/Factory | Scanalyzed Microactuators | -6/Factory | Scanalyzed Mni. Grenade Launcher | -6/Factory | Scanalyzed Imp. Surge Thruster | -6/Garrison | Hacked Cld. VTOL Module | -5/Factory | Scanalyzed Adv. Trap Extractor | -5/Factory | Hacked Smartbomb Launcher | -5/Factory | Hacked Adv. Surge Thruster | -5/Hub_04(d) | Hacked Nanoactuators | -3/Research | Scanalyzed Huge Storage Unit | -3/Research | Hacked Exp. Utility Shielding | -3/Research | Hacked Robot Schematics ------------------ M-13 Machinist | -10/Materials | Hacked M-28 Smith | -8/Storage | Hacked E-15 Imp | -6/Factory | Hacked K-01 Serf | -3/Research | Archive T-07 Excavator | -3/Research | Archive A-02 Transporter | -3/Research | Archive A-15 Conveyor | -3/Research | Archive R-06 Scavenger | -3/Research | Archive R-10 Processor | -3/Research | Archive M-14 Sweeper | -3/Research | Archive M-22 Extractor | -3/Research | Archive M-30 Cleanser | -3/Research | Archive M-36 Artificer | -3/Research | Archive O-16 Technician | -3/Research | Archive O-24 Administrator | -3/Research | Archive O-32 Director | -3/Research | Archive W-16 Scout | -3/Research | Archive W-25 Informer | -3/Research | Archive W-44 Eye | -3/Research | Archive S-10 Pest | -3/Research | Archive S-27 Virus | -3/Research | Archive S-43 Plague | -3/Research | Archive G-34 Mercenary | -3/Research | Archive G-47 Trooper | -3/Research | Archive G-50 Soldier | -3/Research | Archive G-67 Veteran | -3/Research | Archive G-73 Enforcer | -3/Research | Archive B-36 Bruiser | -3/Research | Archive B-48 Gladiator | -3/Research | Archive B-60 Warrior | -3/Research | Archive B-74 Champion | -3/Research | Archive L-31 Rogue | -3/Research | Archive L-41 Fighter | -3/Research | Archive L-61 Swordsman | -3/Research | Archive Y-45 Defender | -3/Research | Archive Y-54 Guardian | -3/Research | Archive Y-64 Sentinel | -3/Research | Archive Y-72 Warden | -3/Research | Archive D-53 Grenadier | -3/Research | Archive D-63 Destroyer | -3/Research | Archive D-83 Annihilator | -3/Research | Archive X-57 Shotgunner | -3/Research | Archive X-62 Marksman | -3/Research | Archive X-67 Chaingunner | -3/Research | Archive X-72 Disruptor | -3/Research | Archive X-77 Beamer | -3/Research | Archive X-82 Rainmaker | -3/Research | Archive X-87 Electro | -3/Research | Archive H-55 Commando | -3/Research | Archive H-66 Slayer | -3/Research | Archive H-77 Assassin | -3/Research | Archive H-88 Terminator | -3/Research | Archive P-60 Hacker | -3/Research | Archive P-70 Sage | -3/Research | Archive P-80 Master | -3/Research | Archive Fabricated ------------ IN-MT5's Pitchfork "Insurrection" | x1 | -6/Factory | Authchip IN-MT5's Pitchfork "Insurrection" | x1 | -6/Factory | Authchip Surge Thruster | x2 | -6/Factory | Authchip IN-MT5's Pitchfork "Insurrection" | x1 | -6/Factory | Authchip Exp. ECM Suite | x1 | -6/Factory | Preloaded Shock Maul | x1 | -6/Factory | Preloaded Imp. Hacking Suite | x1 | -6/Factory | Preloaded IN-MT5's Pitchfork "Insurrection" | x1 | -6/Factory | Authchip IN-MT5's Pitchfork "Insurrection" | x1 | -6/Factory IN-MT5's Pitchfork "Insurrection" | x1 | -5/Factory | Authchip IN-MT5's Pitchfork "Insurrection" | x1 | -5/Factory | Authchip Adv. Trap Extractor | x2 | -5/Factory | Authchip B-48 Gladiator | x3 | -5/Factory | Preloaded IN-MT5's Pitchfork "Insurrection" | x1 | -5/Factory IN-MT5's Pitchfork "Insurrection" | x1 | -5/Factory IN-MT5's Pitchfork "Insurrection" | x1 | -4/Factory IN-MT5's Pitchfork "Insurrection" | x1 | -4/Factory IN-MT5's Pitchfork "Insurrection" | x1 | -4/Factory | Authchip CPS Tube | x1 | -4/Factory IN-MT5's Pitchfork "Insurrection" | x1 | -3/Research | Authchip Hvy. Armored Exoskeleton | x1 | -3/Research | Preloaded Huge Storage Unit | x1 | -3/Research IN-MT5's Pitchfork "Insurrection" | x1 | -3/Armory IN-MT5's Pitchfork "Insurrection" | x1 | -2/Research Repaired ---------- Surge Thruster | 37% | -8/Materials Surge Thruster | 48% | -8/Materials Surge Thruster | 61% | -8/Materials Surge Thruster | 71% | -8/Materials Surge Thruster | 77% | -8/Materials Exp. Sensor Array | 62% | -8/Materials | Broken Surge Thruster | 4% | -6/Factory | Broken Surge Thruster | 72% | -6/Factory Surge Thruster | 74% | -6/Factory Gamma Bomb Array | 50% | -6/Factory Graphene Brace | 50% | -6/Factory Cld. VTOL Module | 35% | -5/Factory Cld. VTOL Module | 68% | -5/Factory Cld. VTOL Module | 65% | -5/Factory Nuclear Pulse Array | 30% | -4/Factory Kinetic Spear | 16% | -4/Factory Imp. Surge Thruster | 1% | -4/Factory Thunder Hammer | 7% | -4/Factory Nuclear Pulse Array | 58% | -4/Factory Imp. Powered Armor | 65% | -3/Research Kinetic Spear | 35% | -3/Research Nanoactuators | 32% | -3/Research Field Propulsion Drive | 50% | -3/Research Studied --------- Cesium-ion Thruster | -9/Materials | Hacked Surge Thruster | -8/Materials | Hacked Lgt. Deuterium Engine | -6/Factory | Hacked Great Maul | -6/Factory | Hacked Mni. Grenade Launcher | -6/Factory | Hacked Lgt. Ion Engine | -5/Factory | Hacked Nuclear Pulse Thruster | -5/Factory | Hacked VTOL Module | -4/Factory | Hacked Nuclear Pulse Array | -4/Factory | Hacked Lgt. Antimatter Reactor | -4/Factory | Hacked Nova Cannon | -4/Factory | Hacked Mic. Fission Core | -4/Factory | Hacked Field Propulsion Drive | -3/Research | Hacked Alien Tech Used ----------------- Core Regenerator Integrated Reactor Achievements -------------- Coming In Hot Challenges ------------ None Game ------ Seed FieldthrustCompanionEngine Manual? 0 Play Time 15:10:09 Cumulative 1133.7 hours Start 2025.11.29 @ 23:57:44 End 2025.12.06 @ 23:43:49 Sessions 15 Manual Loads 0 Difficulty Rogue Special Mode None Game No. 395 Rogue 390 Adventurer 4 Explorer 1 Win Type - Total 23 Types 13/3/1/2/0/1/0/0/2/1 Lore% 97 Gallery% 95 Achievement% 81 Wizard Run 0 Options --------- Layout 0 ASCII 0 Keyboard 0 Movement Numpad Keybinds 0 Fullscreen 2 Font 18/SmallcapsGlow Map View 76x50 Zoom Use 0% Tactical HUD 1 Map Filters NONE Filters NONE Steam 1 RUN: 73c6c998-7a36-4348-9892-012a5d39a404